{"text_format":"1","workbook":"xlsx","n_sheets":24,"sheets":["Cover Page","Facility Info","Operational Data","Operational Summary","Perf. Form 1","Energy Form 1","Permit Compliance","Improvements","Public Liasion","CO2 N2O","Residues","Water","Air (periodic) H1","Air (periodic) H2","Air (CEMS)","HCl","SO2","NOx","TOC","Particulates","CO 0.5 hourly","CO 95% 10 min","NH3","Template changes log"],"not_rendered":{"charts":9,"images":4,"macros":1,"external_links":1,"defined_names":25,"comments":0,"pivot_tables":0},"unopened":[],"bounds":{"document_bytes":16777216,"sheet_cells":100000,"rows_first":2000,"rows_last":500,"rows_between":2000,"halvings":0,"cell_chars":16384,"cell_head_chars":4096},"cells_cut":0,"cells_raw":0,"read":"whole","date_system":"1900"}

{"sheet":"Cover Page","index":0,"n_rows":53,"n_cols":11,"rows_kept":53,"cut":false,"hidden":false,"merged":[[13,10,18,12],[34,1,34,8],[0,3,5,6],[7,1,23,8],[28,1,28,8],[30,1,30,8],[32,1,32,8],[48,2,48,3],[48,6,48,8],[52,2,52,3],[36,1,36,8],[40,2,40,8],[42,2,42,4],[44,2,44,4],[46,2,46,3],[46,6,46,8]]}
[]
[null,null,null,null,null,null,null,null,null,null,"Template version 25.1a (for incinerators) - 27/11/25"]
[]
[null,null,null,null,null,null,null,null,null,null,"Note that there is another version of this template available for co-incinerators"]
[]
[]
[]
[null,"Add photo"]
[]
[]
[]
[]
[null,null,null,null,null,null,null,null,null,null,"Notes:"]
[null,null,null,null,null,null,null,null,null,null,"This template may require adjustments by individual operators to meet specific reporting requirements as defined in the site Permit(s)"]
[]
[]
[]
[]
[]
[]
[]
[]
[]
[]
[]
[]
[]
[]
[null,"Annual Performance Report 2025"]
[]
[null,"Permit EPR/RP3004MA v005"]
[]
[null,"Newhurst Energy Recovery Facility"]
[]
[null,"N/A"]
[]
[null,"Encyclis Ltd"]
[]
[null,"Year:",2025]
[]
[null,"Address:","Ashby Road, Loughborough, Leicestershire"]
[]
[null,"Tel: "]
[]
[null,"Email: ","kathryn.goldacre@encyclis.com"]
[]
[null,"Prepared by:","Kathryn Goldacre",null,null,"Position:","Health, Safety & Environment Manager"]
[]
[null,"Approved by:","Andrew Sanderson",null,null,"Position:","Head of Health, Safety & Compliance"]
[]
[null,"Version:",1]
[]
[null,"Issue Date:","20th  January 2026"]

{"sheet":"Facility Info","index":1,"n_rows":22,"n_cols":11,"rows_kept":22,"cut":false,"hidden":false,"merged":[[4,0,17,8],[21,0,53,8],[4,10,13,13],[21,10,30,13]]}
[{"$f":"+'Cover Page'!$B$29","v":"Annual Performance Report 2025"},null,null,null,{"$f":"+'Cover Page'!$B$33","v":"Newhurst Energy Recovery Facility"}]
[]
["Plant Description and Design",null,null,null,null,null,null,null,null,null,"Notes:"]
[]
["Newhurst Energy Recovery Facility (ERF) is located at junction 23 of the M1 near Shepshed in Leicestershire at an approximate National Grid Reference (NGR) of SK 489 181, around 5km from the centre of Loughborough. The environmental setting to the site can be classed as ‘semi-urban’, with the A512 Ashby Road running to the north, northwest and northeast, beyond which lies Shepshed town at a distance of approximately 500m. Open space and agricultural land lies predominantly to the west and south of the site. \nThe facility treats up to 455000 tonnes of non-recyclable waste from the local area and further afield. \n\n\nThe facility is designed to be able provide combined heat & power (CHP) allowing export of heat to local offtakers, options are being explored.\nThe site uses a state-of-the-art combustion control system, with 5-pass boiler. The steam turbine generates 44MW of electricity, enough to power the site and approx. 80,000 homes.\nThe plant is equipped with the complex ‘XeroSorp’ dry flue gas treatment system to minimise emissions.\nThe site was a joint venture between Encyclis and Biffa with Encyclis having the contract to operate and maintain the plant. From June 2025 Encyclis took full ownership of the facility.",null,null,null,null,null,null,null,null,null,"Include summary of plant design, design capacity, no. of combustion lines, electrical and heat capacity and any other general information that describes the facility, its location and purpose "]
[]
[]
[]
[]
[]
[]
[]
[]
[]
[]
[]
[]
[]
[]
["Summary of Operational Processes and Procedures"]
[]
["Incoming refuse collection vehicles and bulk transport vehicles enter the site and proceed to the incoming weighbridge. After weighing in, the vehicles continue to the enclosed reception hall where they will discharge their load into the waste storage bunker. Vehicle loads are inspected randomly in the Tipping Hall to confirm the nature of incoming waste. Once vehicles have deposited their waste they leave the site via a second weighbridge. Potential emissions of odour and dust from the tipping hall and refuse bunkers are controlled by forced draught fans located above the refuse bunkers. These draw air from the bunker hall and reception area into the furnace to feed the combustion process, creating a slight negative pressure. Whilst the plant is offline, a carbon odour control system is active to ensure all odour remains controlled. The waste combustion takes place on a HZI moving grate, the heat generated being used to create superheated steam which is used to drive the steam turbine and generate electricity. Heat from turbine bleeds can be used for combined heat and power systems and is also used for pre-heating of combustion air to maximise efficiency. Condensing of the steam takes place via air cooled condensing system and the condensate cycles back around in a closed system (other than necessary top up). Emission control is via injection of ammonia into the furnace for NOx control via SNCR technology. At the end of the boiler and gas path is the HZI Xerosorp system where lime and activated carbon are added to remove acidic gases, dioxins, furans and heavy metals before this is all filtered by a bag filter system which removes the lime and carbon added and particulates from the combustion process producing APCr.\nEmissions are measured continuously in stack and by extractive stack measurements as required by the environmental permit. \nResidues from the process, IBA and APCr, are both sent to specialist reprocessing sites. IBA has metals removed for recyling and is reprocessed into IBAA (Incinerator Bottom Ash Aggregate). The APCr is sent to OCO Technology who use accelerated cabonation technology to produce a carbon negative aggregate material which encapsulates the absorbed substances from the APCr.\nMaintenance is controlled by a CMMS system and consists of planned preventative maintenance (ppm), derived from both experience of the plant and OEM requirements, and reactive maintenance. An annual shutdown period, during which maintenance and statutory inspections are carried out, is completed.\nThe plant operates a document control system meeting the requirements of the Encyclis document management system and ISO 9001, 14001 and 45001 with the latest audit retaining the certification in September 2025.\n\nCommisioning of the site took place from late 2022 until 24th May 2023 at which point the site was handed over from the construction team to the O&M team.\nTakeover by Encyclis - 24th May 2023.\nFrom September 2024 the site has used HVO (Hydrotreated Vegetable Oil) for the furnace burners, mobile plant and on site generators (emergency back up). This produces less oxides of sulphur, oxides of nitrogen, CO and CO2 and is at least 96% biogenic by carbon-14 analysis (from specification sheet).",null,null,null,null,null,null,null,null,null,"Include summary of key processes and procedures such as (but not limited to); waste reception, control rooms, grate, bed and boiler, energy & heat  generation, cooling systems, residue management, emission controls, health and safety systems, maintenance"]

{"sheet":"Operational Data","index":2,"n_rows":79,"n_cols":17,"rows_kept":79,"cut":false,"hidden":false,"merged":[[78,0,78,7],[72,2,72,5],[73,2,73,5],[67,2,67,5],[68,2,68,5],[69,2,69,5],[70,2,70,5],[4,9,23,9],[26,9,30,9],[66,0,70,0],[36,1,50,1],[3,1,3,2],[10,1,22,1],[27,1,29,1],[7,2,7,3],[24,0,24,7],[31,2,31,5],[51,0,51,7],[52,0,52,7],[58,2,58,5],[61,2,61,5],[62,2,62,5],[33,0,33,7]]}
[{"$f":"+'Cover Page'!$B$29","v":"Annual Performance Report 2025"},null,null,null,{"$f":"+'Cover Page'!$B$33","v":"Newhurst Energy Recovery Facility"}]
[]
["Operational Data"]
["Plant Size:",455000,null,"tonnes pa",null,null,null,null,null,"Notes:"]
["Nominal net thermal input:",127.3,"MWth",null,null,null,null,null,null,"* Export capacity = nominal generation capacity at the generator terminals minus nominal parasitic load.\n\n** CHP and district heating plants only - put N/A if no heat export.\n\n***  Combusted tonnage = tonnes delivered in period + (tonnes in bunker at start of period – tonnes in bunker at end of period), or equivalent calculation depending on plant type\n\n**** Availability Definition: The availability of a line is to be calculated by the number of hours the line reported Continuously Monitored emission levels to the Regulator through the calendar year divided by the total number of hours in that year. \n\nThe overall plant availability is calculated as the mean of all lines in the plant. For clarity this includes periods of abnormal operation.  \n\nRationale: The primary function of an Energy from Waste facility is the disposal of waste. It follows therefore that the availability of a plant is determined by the period of time a facility spends undertaking this activity.\n\n*****NCV of waste: This should be completed for all plants which have a boiler. Calculate using total thermal power produced by boiler/boiler efficiency, or other suitable calculation. \n"]
["Nominal electrical export capacity*:",39.6,"MWe"]
["Nominal heat export capacity**:","N/A","MWth"]
["No. of combustion lines:",1,"No. of steam turbines:",null,1]
[]
["Waste types received","Unit","Q1","Q2","Q3","Q4","Year Total","%"]
["Household / Local Authority","tonnes",29267.1,55472.54,56643.8,46685.84,{"$f":"SUM(C11:F11)","v":188069.28},{"$f":"IF(G11>0,G11/$G$21,\"-\")","v":0.52731420661745276}]
["Commercial & Industrial ",null,48394.02,22859.279999999999,29685.4,55206.5,{"$f":"SUM(C12:F12)","v":156145.19999999998},0.43780452743331333]
["Hazardous ",null,0,0,0,0,0,"-"]
["Clinical (180104 + 180109)",null,398.9,203.18,38.74,33.200000000000003,674.02,1.8898372001227182E-3]
["Waste wood (biomass) ",null,0,0,0,0,0,"-"]
["Refuse Derived Fuel (incl. SRF) - H'hold/LA",null,0,0,0,0,{"$f":"SUM(C16:F16)","v":0},"-"]
["Refuse Derived Fuel (incl. SRF) - C&I",null,5325.18,1903.76,1598.98,2927.22,11755.14,3.2959409015534506E-2]
["Other Plant tissue - 020103",null,4.88,1.1200000000000001,2.06,3.36,11.42,3.2019733576750607E-5]
["Other [Please specify]",null,0,0,0,0,0,"-"]
["Other [Please specify]",null,0,0,0,0,0,"-"]
["Total waste received",null,{"$f":"SUM(C11:C20)","v":83390.079999999987},{"$f":"SUM(D11:D20)","v":80439.87999999999},{"$f":"SUM(E11:E20)","v":87968.98000000001},{"$f":"SUM(F11:F20)","v":104856.12},356655.05999999994]
["Rejected Waste ",null,null,null,null,null,{"$f":"SUM(C22:F22)","v":0},{"$f":"IF(G22>0,G22/$G$21,\"-\")","v":"-"}]
["Unprocessed waste transferred out",null,null,null,null,null,{"$f":"SUM(C23:F23)","v":0},{"$f":"IF(G23>0,G23/$G$21,\"-\")","v":"-"}]
["Total waste combusted ***",null,84549,81872,87433,102334,{"$f":"SUM(C24:F24)","v":356188}]
["Household / Local Authority = 200301, 191212 & 191210 municipal waste\nCommercial & Industrial = 200301, 191212 & 191210 other sources\nTotal waste combusted ***  = as measured by waste cranes / DCS"]
[]
["Energy Usage / Export","Unit","Q1","Q2","Q3","Q4","Year Total","KWh/te",null,"Password for protected cells\nA password has been set to prevent accidental  editing of cells with formulae. \nIf you still need to make an edit for some reason then the password = 1234"]
["Power generated at generator terminals","MWh",83860,72963,67886,21620,{"$f":"SUM(C28:F28)","v":246329},{"$f":"IF(G28>0,G28*1000/$G$24,\"-\")","v":691.5701820386987}]
["Power exported to grid and other external user(s)",null,77538,67015,62252,19911,{"$f":"SUM(C29:F29)","v":226716},{"$f":"IF(G29>0,G29*1000/$G$24,\"-\")","v":636.50656394937505}]
["Power imported",null,183.97,449.89,1173.1300000000001,4836.68,6643.67,{"$f":"IF(G30>0,G30*1000/$G$24,\"-\")","v":18.652144373196176}]
["Indicative parasitic load $","%",{"$f":"IF(C28>0,(C28-C29)/C28,\"-\")","v":7.5387550679704263E-2},{"$f":"IF(D28>0,(D28-D29)/D28,\"-\")","v":8.1520770801639192E-2},8.2992074949179512E-2,7.9047178538390384E-2,{"$f":"IF(G28>0,1-G29/(G28+G30),\"-\")","v":0.10379251640108}]
["Thermal Energy Exported **",null,"N/A",null,null,null,{"$f":"SUM(C32:F32)","v":0},{"$f":"IF(G32>0,G32*1000/$G$24,\"-\")","v":"-"}]
["R1 value (if applicable)  $","R1","-","-","-","-",0.68]
["NOTE $ : From 10th September 2025 until late on 10th December 2025 the plant was operating without the turbine due to a National Grid-imposed export curtailment. This restriction was associated with works at Ratcliffe on a damaged wall bushing requiring immediate repair, work which was extended to the beginning of December. During this period, the local network was being supplied via Coalville, which had limited capacity. As a result, the grid would not permit turbine operation or transition to island mode. This has had significant effect on overall export and import MWh figures and therefore also the R1 value.\n"]
[]
["Waste Disposal & Recovery","Unit","Q1","Q2","Q3","Q4","Year Total","% inputs"]
["APC Residues - produced","tonnes",2196.46,1974.3,2151.12,2472.84,{"$f":"SUM(C37:F37)","v":8794.7200000000012},{"$f":"IF(G37>0,G37/$G$24,\"-\")","v":2.4691230473794741E-2}]
["IBA - produced",null,14967.48,16145.58,18335.7,19757.759999999998,69206.51999999999,{"$f":"IF(G38>0,G38/$G$24,\"-\")","v":0.19429773041202958}]
["Metals recycling 200140",null,1.48,4.04,20.420000000000002,1.22,{"$f":"SUM(C39:F39)","v":27.16},7.6251866991588709E-5]
["190102 Ferrous metals from IBA",null,308,313.24,334.14,451.02,1406.4,3.9484766471638575E-3]
["200301 - Mixed Municipal",null,6.32,38.840000000000003,30.3,42.56,118.02000000000001,3.3134187563870767E-4]
["170201 - Wood",null,0.76,2.2999999999999998,2.68,1.1000000000000001,6.84,1.92033420553191E-5]
["150106 - Mixed Packaging",null,0.06,0,0.06,0.14000000000000001,0.26,7.2995159859400099E-7]
["200304 Septic tank sludge",null,184.06,194.32,211.46,212.88,802.72,2.2536413354745247E-3]
["161002 - Boiler Water ",null,212.42,0,470.88,0,683.3,1.918368951228003E-3]
["130508* mixtures of wastes from grit chambers and oil/water separators (seperator annual service)",null,6.64,0,0,0,6.64,1.8641840825631407E-5]
["130208* Waste oil",null,0.5,0,0,0,0.5,1.4037530742192325E-6]
["130110* mineral based non-chlorinated hydraulic oils",null,0,0,0,2.5,2.5,7.0187653710961631E-6]
["170904 mixed construction and demolition wastes other than those mentioned in 17 09 01, 17 09 02 and 17 09 03",null,0,13.54,6.42,0,19.96,5.6037822722831768E-5]
["150202* absorbents, filter materials (including oil filters not otherwise specified), wiping cloths, protective clothing contaminated by hazardous substances",null,0.3,0,0.3,0.5,1.1000000000000001,3.088256763282312E-6]
["200135* discarded electrical and electronic equipment other than those mentioned in 20 01 21 and 20 01 23 containing hazardous components",null,0.16,0,0.4,0,0.56000000000000005,1.5722034431255405E-6]
["From quarterly waste returns as removed from site"]
["Metals recyling is metals from plant operation & maintenance. Metals recovered from IBA is 190102"]
[]
["Raw Material Usage","Unit","Q1","Q2","Q3","Q4","Year Total","Qty./te",null,null,null,"Q1","Q2","Q3","Q4","Density"]
["Mains Water","ltrs",6593280,7184180,9280000,7582198,{"$f":"SUM(C56:F56)","v":30639658},{"$f":"IF(G56>0,G56/$G$24,\"-\")","v":86.021028221051807},null,null,"Townswater used m3",6593.28,7184.18,9278,7582.1980000000003]
["Other Water","ltrs",0,0,0,0,0,{"$f":"IF(G57>0,G57/$G$24,\"-\")","v":"-"},null,null,"Townswater used litres",{"$f":"L56*1000","v":6593280},{"$f":"M56*1000","v":7184180},{"$f":"N56*1000","v":9278000},{"$f":"O56*1000","v":7582198}]
["Ammonia*","kgs",3011.76,20812.71,17170.53,35319.47,76314.47,0.2142533437398228,null,null,"Ammonia L",3306,22846,18848,38770,0.91100000000000003]
["Urea","kgs","N/A",null,null,null,{"$f":"SUM(C59:F59)","v":0},"-",null,null,"Ammonia kgs",{"$f":"L58*$P$58","v":3011.7660000000001},{"$f":"M58*$P$58","v":20812.706000000002},17170.528000000002,35319.47,null,{"$f":"SUM(L59:O59)","v":76314.47}]
["Activated Carbon","kgs",20450,19270,23590,23140,86450,0.24270890653250532,null,null,"PAC t",20.45,19.27,23.59,23.14]
["Lime / hydrated lime","kgs",679400,641140,623750,794990,2739280,7.6905454422945185,null,null,"PAC kgs",{"$f":"L60*1000","v":20450},{"$f":"M60*1000","v":19270},23590,23140,null,{"$f":"SUM(L61:O61)","v":86450}]
["Fuel oil","ltrs","N/A",null,null,null,0,"-",null,null,"Lime t",679.4,641.14,623.75,794.99]
["Gas","m3","N/A",null,null,null,0,"-",null,null,"Lime kgs",{"$f":"L62*1000","v":679400},{"$f":"M62*1000","v":641140},623750,794990,null,2739280]
["HVO (burners, EDG & mobile plant)","ltrs",90743,217458,87894,42863,438958,1.2323772839062517]
[]
["Summary ","Line/Unit","Q1","Q2","Q3","Q4","Year Total",null,"Hrs in year "]
["Availability of waste combustion by line, hrs ****",1,1949.5,1856,1979,2195.5,{"$f":"SUM(C67:F67)","v":7980},{"$f":"+G67/$I$67","v":0.91095890410958902},8760,"Change this figure to 8784 in a leap year"]
[null,2,"N/A",null,null,null,0,{"$f":"+G68/$I$67","v":0}]
[null,3,"N/A",null,null,null,0,0]
[null,4,"N/A",null,null,null,0,0]
[null,5,"N/A",null,null,null,{"$f":"SUM(C71:F71)","v":0},0]
["Hours of turbine operations, hrs $",1,1955.46,1815.71,1662.49,529.24,5962.9,0.68069634703196347]
["Hours of turbine operations, hrs",2,"N/A",null,null,null,0,0]
["Hours of heat / steam export**","hours","N/A",null,null,null,0,{"$f":"IF(B74>0,G73/I67,\"n/a\")","v":0}]
["Net calorific value of waste*****","MJ/kg",10.86,10.34,9.9499999999999993,9.7899999999999991,10.23]
["Abnormal operation events","qty.",0,0,0,0,0,{"$f":"IF(G76>0,\"yes\",\"no\")","v":"no"}]
["Abnormal operation duration","hours",null,0,0,0,0,{"$f":"+(G77)/I67","v":0}]
["Permit Breaches","qty.",0,0,0,0,0,{"$f":"IF(G78>0,\"yes\",\"no\")","v":"no"}]
["NOTE $ : From 10th September 2025 until late on 10th December 2025 the plant was operating without the turbine due to a National Grid-imposed export curtailment. This restriction was associated with works at Ratcliffe on a damaged wall bushing requiring immediate repair, work which was extended to the beginning of December. During this period, the local network was being supplied via Coalville, which had limited capacity. As a result, the grid would not permit turbine operation or transition to island mode. This has had significant effect on overall export and import MWh figures.\n\n* Ammonia kgs calculated from litres used x 0.911 (density from MSDS)."]

{"sheet":"Operational Summary","index":3,"n_rows":33,"n_cols":11,"rows_kept":33,"cut":false,"hidden":false,"merged":[[44,2,44,8],[39,2,39,8],[40,2,40,8],[41,2,41,8],[42,2,42,8],[43,2,43,8],[29,10,42,13],[4,0,26,8],[4,10,13,13],[28,1,28,8],[29,2,29,8],[30,2,30,8],[31,2,31,8],[32,2,32,8],[33,2,33,8],[34,2,34,8],[35,2,35,8],[36,2,36,8],[37,2,37,8],[38,2,38,8]]}
[{"$f":"+'Cover Page'!$B$29","v":"Annual Performance Report 2025"},null,null,null,{"$f":"+'Cover Page'!$B$33","v":"Newhurst Energy Recovery Facility"}]
[]
["Summary of Plant Operations and Maintenance during the reporting year",null,null,null,null,null,null,null,null,null,"Notes:"]
[]
["The plant has maintained 91.1% availability, fractionally lower than 2024. In addition to the planned outage in March / April 2025 a tube leak at the start of September resulted in an unplanned shutdown. This coincided with a grid curtailment (see below) so the plant remained offline for some additional maintenance works - a total of 9 days. \nThe turbine has been available for all of the year except the planned March / April outage but running was limited by the grid curtailment.\nFrom 10th September 2025 until late on 10th December 2025 the plant was operating without the turbine due to a National Grid-imposed export curtailment. This restriction was associated with works at Ratcliffe on a damaged wall bushing requiring immediate repair, work which was extended to the beginning of December. During this period, the local network was being supplied via Coalville, which had limited capacity. As a result, the grid would not permit turbine operation or transition to island mode. This has had significant effect on overall export and import MWh figures.\n\nThe CEMS underwent AST in February 2025 and all measurands passed AST, the QAL2 functions from 2023 and 2024 (dust, flow & TOC) being maintained.\n\nThe site has invested in an upgraded weather station coupled to Plumecast software to assist in detailed responses to any odour complaints.\n\nIn September 2025 the site underwent a 3 day audit as part of the ongoing surveillence for the ISO 9001, 14001 and 45001 certification. 10 minor non-conformances and 6 Opportunities for Improvement found.\nDuring the year audits were also completed of Stack test SSP, testing and reports (EA template), DAHS provider and CEMS provider",null,null,null,null,null,null,null,null,null,"Include summary of key operational and/or maintenance activity undertaken in the year, such as any major component upgrades and/or replacements "]
[]
[]
[]
[]
[]
[]
[]
[]
[]
[]
[]
[]
[]
[]
[]
[]
[]
[]
[]
[]
[]
[]
[]
[{"$f":"+'Cover Page'!C39","v":2025},"Plant shut-downs"]
["Start date","End date","Reason for shut-down",null,null,null,null,null,null,null,"Provide a very brief reason for plant shut-down e.g. \"Shut-down prior to major outage\"; \"Emergency shut-down due to boiler tube leak\". All emergency shut-downs must be listed (irrespective of whether or not they were required to be reported to the EA). \n\nThere is no need to include periods of hot-standby here (e.g. to clear feed chute hopper blockages).\n\nFor clinical waste incinerators which require regular shut-downs for boiler cleaning, there is no need to record these here (only those prior to major outages, and emergency shut-downs). "]
["2025-03-23","2025-04-11","Annual planned maintenance outage"]
["2025-04-12","2025-04-14","Emerging issues folllowing outage"]
["2025-09-08","2025-09-17","Tube leak repair plus, due to grid curtailment, remained offline to complete some additional maintenance tasks"]

{"sheet":"Perf. Form 1","index":4,"n_rows":61,"n_cols":10,"rows_kept":61,"cut":false,"hidden":false,"merged":[[22,0,22,1],[22,2,22,3],[22,4,22,5],[22,6,22,7],[22,8,22,9],[28,0,28,1],[28,2,28,3],[28,4,28,5],[28,6,28,7],[28,8,28,9],[23,0,23,1],[23,2,23,3],[23,4,23,5],[23,6,23,7],[23,8,23,9],[26,0,26,1],[26,2,26,3],[26,4,26,5],[26,6,26,7],[26,8,26,9],[24,2,24,3],[24,0,24,1],[24,4,24,5],[24,6,24,7],[15,2,15,3],[15,4,15,5],[15,6,15,7],[15,8,15,9],[13,0,13,1],[14,0,14,1],[15,0,15,1],[13,2,13,3],[14,2,14,3],[14,4,14,5],[13,4,13,5],[13,6,13,7],[14,6,14,7],[13,8,13,9],[14,8,14,9],[9,0,9,9],[10,0,10,1],[10,2,10,3],[10,4,10,5],[10,6,10,7],[10,8,10,9],[2,0,2,4],[2,6,2,8],[3,1,3,4],[5,3,5,4],[5,6,5,7],[8,0,8,1],[8,2,8,3],[8,4,8,5],[8,6,8,7],[8,8,8,9],[11,0,11,1],[11,2,11,3],[11,4,11,5],[11,6,11,7],[11,8,11,9],[12,0,12,1],[12,2,12,3],[12,4,12,5],[12,6,12,7],[12,8,12,9],[18,0,18,1],[18,2,18,3],[18,4,18,5],[18,6,18,7],[18,8,18,9],[19,0,19,9],[16,2,16,3],[16,4,16,5],[16,6,16,7],[16,8,16,9],[17,0,17,3],[17,4,17,5],[17,6,17,7],[17,8,17,9],[16,0,16,1],[20,0,20,1],[20,2,20,3],[20,4,20,5],[20,6,20,7],[20,8,20,9],[21,0,21,1],[21,2,21,3],[21,4,21,5],[21,6,21,7],[21,8,21,9],[24,8,24,9],[25,0,25,1],[25,2,25,3],[25,4,25,5],[25,6,25,7],[25,8,25,9],[27,0,27,1],[27,2,27,3],[27,4,27,5],[27,6,27,7],[27,8,27,9],[29,0,29,3],[29,4,29,5],[29,6,29,7],[29,8,29,9],[38,0,38,3],[38,7,38,8],[39,0,39,3],[39,4,39,5],[39,7,39,8],[40,0,40,3],[40,4,40,5],[40,7,40,8],[30,0,30,3],[30,4,30,5],[30,6,30,7],[30,8,30,9],[32,0,32,9],[33,0,35,9],[43,0,43,3],[43,4,43,5],[43,7,43,8],[44,0,44,3],[44,4,44,5],[44,7,44,8],[41,0,41,3],[41,4,41,5],[41,7,41,8],[42,0,42,3],[42,4,42,5],[42,7,42,8],[54,0,54,1],[56,0,56,9],[57,0,58,9],[45,0,45,9],[46,0,47,9],[50,0,50,1],[50,2,50,9],[52,0,52,1],[53,0,53,1]]}
[{"$f":"+'Cover Page'!C39","v":2025}," Annual Reporting Performance Form 1"]
[]
[{"$f":"+'Cover Page'!B31","v":"Permit EPR/RP3004MA v005"},null,null,null,null,"Operator: ",{"$f":"+'Cover Page'!B37","v":"Encyclis Ltd"}]
["Facility:",{"$f":"+'Cover Page'!B33:I33","v":"Newhurst Energy Recovery Facility"},null,null,null,"Form:","Performance 1"]
[]
["Reporting  Period from: ",null,null,"1st January 2025",null,"to:","2025-12-31"]
[]
[{"$f":"+A1","v":2025},"Annual Reporting of Waste Disposal and Recovery"]
["Waste Description",null,"Disposal Route(s)",null,"Disposal Tonnes",null,"Recovery Tonnes",null,"% / tonne of waste incinerated"]
["1) Hazardous Wastes"]
["APC Residues",null,"R05",null,0,null,{"$f":"'Operational Data'!G37","v":8794.7200000000012},null,{"$f":"IF((E11+G11)>0,(E11+G11)/'Operational Data'!$G$24, \"-\")","v":2.4691230473794741E-2}]
["IBA",null,0,null,0,null,0,null,{"$f":"IF((E12+G12)>0,(E12+G12)/'Operational Data'!$G$24, \"-\")","v":"-"}]
["130508 mixtures of wastes from grit chambers and oil/water separators (seperator annual service)",null,"D15",null,{"$f":"'Operational Data'!G46","v":6.64},null,0,null,{"$f":"IF((E13+G13)>0,(E13+G13)/'Operational Data'!$G$24, \"-\")","v":1.8641840825631407E-5}]
["130208* Waste oil",null,"R13",null,0,null,{"$f":"'Operational Data'!G47","v":0.5},null,{"$f":"IF((E14+G14)>0,(E14+G14)/'Operational Data'!$G$24, \"-\")","v":1.4037530742192325E-6}]
["130110* mineral based non-chlorinated hydraulic oils",null,"R03",null,0,null,{"$f":"'Operational Data'!G48","v":2.5},null,{"$f":"IF((E15+G15)>0,(E15+G15)/'Operational Data'!$G$24, \"-\")","v":7.0187653710961631E-6}]
["150202* absorbents, filter materials (including oil filters not otherwise specified), wiping cloths, protective clothing contaminated by hazardous substances",null,"R13",null,0,null,{"$f":"'Operational Data'!G50","v":1.1000000000000001},null,{"$f":"IF((E16+G16)>0,(E16+G16)/'Operational Data'!$G$24, \"-\")","v":3.088256763282312E-6}]
["200135* discarded electrical and electronic equipment other than those mentioned in 20 01 21 and 20 01 23 containing hazardous components",null,"R13",null,0,null,{"$f":"'Operational Data'!G51","v":0.56000000000000005},null,{"$f":"IF((E17+G17)>0,(E17+G17)/'Operational Data'!$G$24, \"-\")","v":1.5722034431255405E-6}]
["Total Hazardous Waste",null,null,null,{"$f":"SUM(E11:F17)","v":6.64},null,{"$f":"SUM(G11:H17)","v":8799.380000000001},null,{"$f":"IF((E18+G18)>0,(E18+G18)/'Operational Data'!$G$24, \"-\")","v":2.4722955293272092E-2}]
[]
["2) Non-Hazardous Wastes"]
["IBA",null,"R05",null,0,null,{"$f":"'Operational Data'!G38","v":69206.51999999999},null,{"$f":"IF((E21+G21)>0,(E21+G21)/'Operational Data'!$G$24, \"-\")","v":0.19429773041202958}]
["Ferrous Metal from IBA",null,"R04",null,0,null,{"$f":"'Operational Data'!G40","v":1406.4},null,{"$f":"IF((E22+G22)>0,(E22+G22)/'Operational Data'!$G$24, \"-\")","v":3.9484766471638575E-3}]
["Metals 200140",null,"R04",null,0,null,{"$f":"'Operational Data'!G39","v":27.16},null,{"$f":"IF((E23+G23)>0,(E23+G23)/'Operational Data'!$G$24, \"-\")","v":7.6251866991588709E-5}]
["161002 - Boiler Water ",null,"R05",null,0,null,{"$f":"'Operational Data'!G45","v":683.3},null,{"$f":"IF((E24+G24)>0,(E24+G24)/'Operational Data'!$G$24, \"-\")","v":1.918368951228003E-3}]
["200301 - Mixed Municipal",null,"R01, R03",null,0,null,{"$f":"'Operational Data'!G41","v":118.02000000000001},null,{"$f":"IF((E25+G25)>0,(E25+G25)/'Operational Data'!$G$24, \"-\")","v":3.3134187563870767E-4}]
["170201 - Wood",null,"R03",null,0,null,{"$f":"'Operational Data'!G42","v":6.84},null,{"$f":"IF((E26+G26)>0,(E26+G26)/'Operational Data'!$G$24, \"-\")","v":1.92033420553191E-5}]
["150106 - Mixed Packaging",null,"R03",null,0,null,{"$f":"'Operational Data'!G43","v":0.26},null,{"$f":"IF((E27+G27)>0,(E27+G27)/'Operational Data'!$G$24, \"-\")","v":7.2995159859400099E-7}]
["200304 Septic tank sludge",null,"D08",null,{"$f":"'Operational Data'!G44","v":802.72},null,0,null,{"$f":"IF((E28+G28)>0,(E28+G28)/'Operational Data'!$G$24, \"-\")","v":2.2536413354745247E-3}]
["170904 mixed construction and demolition wastes other than those mentioned in 17 09 01, 17 09 02 and 17 09 03",null,"D01",null,{"$f":"'Operational Data'!G49","v":19.96},null,0,null,{"$f":"IF((E29+G29)>0,(E29+G29)/'Operational Data'!$G$24, \"-\")","v":5.6037822722831768E-5}]
["Total Non-Hazardous Waste",null,null,null,{"$f":"SUM(E21:F29)","v":822.68000000000006},null,{"$f":"SUM(G21:H28)","v":71448.499999999985},null,{"$f":"IF((E30+G30)>0,(E30+G30)/'Operational Data'!$G$24, \"-\")","v":0.20290178220490296}]
["TOTAL WASTE",null,null,null,{"$f":"+E30+E18","v":829.32},null,{"$f":"+G30+G18","v":80247.87999999999},null,{"$f":"IF((E31+G31)>0,(E31+G31)/'Operational Data'!$G$24, \"-\")","v":0.22762473749817511}]
[]
["Operator’s comments :"]
["All IBA is recycled into IBAA. IBA has remained non-hazardous throughout 2025.\nAPCr goes through the OCO Accelerated Carbonation Technology process where the APCr waste is reacted with Carbon Dioxide in a carbon capture process (CCU) to produce a calcium carbonate based aggregate. "]
[]
[]
[]
[{"$f":"+A1","v":2025},"Annual Reporting of Water and Other Raw Material Usage"]
["Raw Material",null,null,null,"Usage",null,"Unit","Specific Usage",null,"Unit"]
["Mains Water",null,null,null,{"$f":"+'Operational Data'!G56/1000","v":30639.657999999999},null,"m3",{"$f":"IF(E40>0,E40/'Operational Data'!$G$24,\"-\")","v":8.6021028221051801E-2},null,"m3/te"]
["Total Water",null,null,null,{"$f":"+'Operational Data'!G57+'Operational Data'!G56/1000","v":30639.657999999999},null,"m3",{"$f":"IF(E41>0,E41/'Operational Data'!$G$24,\"-\")","v":8.6021028221051801E-2},null,"m3/te"]
["Urea / Ammonia",null,null,null,{"$f":"+'Operational Data'!G58","v":76314.47},null,"kg",{"$f":"IF(E42>0,E42/'Operational Data'!$G$24,\"-\")","v":0.2142533437398228},null,"kg/te"]
["Activated Carbon",null,null,null,{"$f":"+'Operational Data'!G60","v":86450},null,"kg",{"$f":"IF(E43>0,E43/'Operational Data'!$G$24,\"-\")","v":0.24270890653250532},null,"kg/te"]
["Lime / hydrated lime / Sodium Bicarb.",null,null,null,{"$f":"+'Operational Data'!G61","v":2739280},null,"kg",{"$f":"IF(E44>0,E44/'Operational Data'!$G$24,\"-\")","v":7.6905454422945185},null,"kg/te"]
[]
["Operator’s comments :"]
["Slight variations from previous years quantity per tonne of waste from fine tuning of the abatement systems"]
[]
[]
[{"$f":"+A38","v":2025},"Annual Reporting of other performance indicators "]
["Parameter",null,"Results by Line"]
[null,null,"A1","A2","A3","A4","A5",null,"Turbine 1","Turbine 2"]
["Operating hours for the year, hours",null,{"$f":"'Operational Data'!G67","v":7980}]
["Number of periods of abnormal operation, qty.",null,{"$f":"'Operational Data'!G76","v":0}]
["Cumulative hours of abnormal operation for this year, hours",null,{"$f":"'Operational Data'!G77","v":0}]
[]
["Operator’s comments :"]
["No abnormal operations or permit non-compliances."]
[]
[]
["Signed: ",null,null,null,null,null,"Date:","20th January 2026"]

{"sheet":"Energy Form 1","index":5,"n_rows":29,"n_cols":8,"rows_kept":29,"cut":false,"hidden":false,"merged":[[2,6,2,8],[4,1,4,4],[6,3,6,4],[6,6,6,7],[8,0,8,2],[8,3,8,4],[8,6,8,8],[9,0,9,2],[9,3,9,4],[9,6,9,8],[10,0,10,2],[10,3,10,4],[10,6,10,8],[11,0,11,2],[11,3,11,4],[11,6,11,8],[12,0,12,2],[12,3,12,4],[12,6,12,8],[13,0,13,2],[13,3,13,4],[13,6,13,8],[14,0,14,2],[14,3,14,4],[14,6,14,8],[15,0,15,2],[15,3,15,4],[15,6,15,8],[17,0,17,8],[18,0,24,8]]}
[{"$f":"+'Cover Page'!C39","v":2025}," Annual Reporting of Energy Usage/Export"]
[]
[{"$f":"+'Cover Page'!B31","v":"Permit EPR/RP3004MA v005"},null,null,null,null,"Operator: ",{"$f":"+'Cover Page'!B37","v":"Encyclis Ltd"}]
[]
["Facility:",{"$f":"+'Cover Page'!B33:I33","v":"Newhurst Energy Recovery Facility"},null,null,null,"Form:","Energy 1"]
[]
["Reporting  Period from: ",null,null,{"$f":"+'Perf. Form 1'!D6:E6","v":"1st January 2025"},null,"to:",{"$f":"+'Perf. Form 1'!G6:H6","v":"2025-12-31"}]
[]
["Energy Source",null,null,"Energy Usage",null,"Unit","Specific Usage (KWh/tonne incinerated"]
["Electricity Produced",null,null,{"$f":"+'Operational Data'!G28","v":246329},null,"MWh",{"$f":"+'Operational Data'!H28","v":691.5701820386987}]
["Electricity Imported   ",null,null,{"$f":"+'Operational Data'!G30","v":6643.67},null,"MWh",{"$f":"+'Operational Data'!H30","v":18.652144373196176}]
["Electricity Exported",null,null,{"$f":"+'Operational Data'!G29","v":226716},null,"MWh",{"$f":"+'Operational Data'!H29","v":636.50656394937505}]
["Gas Oil",null,null,"N/A",null,"tonnes","N/A"]
["Steam/hot water exported",null,null,{"$f":"+'Operational Data'!G32","v":0},null,"GWh",{"$f":"+'Operational Data'!H32","v":"-"}]
["HVO (Hydrotreated Vegetable Oil) ",null,null,{"$f":"('Operational Data'!G64/1000)*0.772","v":338.87557600000002},null,"tonnes",{"$f":"'Operational Data'!H64","v":1.2323772839062517}]
[]
[]
["Operator’s comments :"]
["HVO tonnes calculated from litres using a density of 0.772 (taken from MSDS).\n\nFrom 10th September 2025 until late on 10th December 2025 the plant was operating without the turbine due to a National Grid-imposed export curtailment. This restriction was associated with works at Ratcliffe on a damaged wall bushing requiring immediate repair, work which was extended to the beginning of December. During this period, the local network was being supplied via Coalville, which had limited capacity. As a result, the grid would not permit turbine operation or transition to island mode. This has had significant effect on overall export and import MWh figures."]
[]
[]
[]
[]
[]
[]
[]
[]
[]
["Signed: ",null,null,null,null,null,"Date:","20th January 2026"]

{"sheet":"Permit Compliance","index":6,"n_rows":35,"n_cols":12,"rows_kept":35,"cut":false,"hidden":false,"merged":[[33,1,33,3],[33,4,33,6],[33,7,33,8],[34,1,34,3],[34,4,34,6],[34,7,34,8],[35,4,35,8],[9,0,9,1],[9,2,9,4],[9,5,9,8],[10,0,10,1],[10,2,10,4],[10,5,10,8],[11,0,11,1],[11,2,11,4],[11,5,11,8],[12,0,12,1],[12,2,12,4],[12,5,12,8],[13,0,13,1],[13,2,13,4],[13,5,13,8],[7,0,7,1],[7,2,7,8],[8,0,8,1],[8,2,8,4],[8,5,8,8],[14,5,14,8],[15,0,15,1],[17,2,17,4],[17,5,17,8],[15,2,15,4],[15,5,15,8],[17,0,17,1],[16,0,16,1],[16,2,16,4],[16,5,16,8],[32,1,32,3],[32,4,32,6],[32,7,32,9],[29,1,29,3],[29,4,29,6],[29,7,29,9],[30,1,30,3],[30,4,30,6],[30,7,30,9],[8,11,21,11],[26,0,26,10],[19,0,19,10],[31,1,31,3],[31,4,31,6],[31,7,31,9],[27,1,27,3],[27,4,27,6],[27,7,27,9],[28,1,28,3],[28,4,28,6],[28,7,28,9],[23,1,23,2],[14,0,14,1],[14,2,14,4],[24,0,24,8],[20,7,20,8],[20,1,20,2],[20,3,20,5],[22,3,22,5],[23,3,23,5],[22,1,22,2]]}
[{"$f":"+'Cover Page'!$B$29","v":"Annual Performance Report 2025"},null,null,null,{"$f":"+'Cover Page'!$B$33","v":"Newhurst Energy Recovery Facility"}]
[]
["Summary of Permit Compliance"]
[]
["Compliance with permit limits for continuously monitored pollutants"]
[]
["The plant met its emission limits as shown in the table below:"]
["Substance",null,"Percentage time compliant during operationNote 1",null,null,null,null,null,null,null,null,"Notes:"]
[null,null,"Half-hourly limit",null,null,"Daily limit",null,null,null,null,null,"Note 1: Please report to 2 decimal places, i.e. xx.xx%\n\nNote 2: Please enter into this table any permit non-compliances that the EA has given a CCS score for. Please also enter any other non-compliances which you have notified to the EA (e.g. ELV exceedances) but which have not yet been assessed by the EA. There is no need to enter any notifications which were subsequently assessed by the EA not to be permit breaches.  \n\nNote 3: Please enter information here (rather than just referencing the notifications that were sent to the EA) including where relevant the incineration line reference, pollutant and value of the measured result for any ELV exceedances.   \n\n"]
["Particulates",null,1,null,null,1]
["Oxides of nitrogen",null,1,null,null,1]
["Sulphur dioxide",null,1,null,null,1]
["Carbon monoxide",null," 100.00% 95% of 10-min averages",null,null,1]
["Total organic carbon",null,"100%*",null,null,1]
["Hydrogen chloride",null,1,null,null,1]
["Hydrogen fluoride",null,"N/A - Periodic monitoring",null,null,"N/A - Periodic monitoring"]
["Nitrous Oxide",null,"N/A no ELV",null,null,"N/A no ELV"]
["Ammonia",null,"N/A no ELV",null,null,1]
[]
["Summary of non-compliances under the permit Note 2"]
["Date","Summary of non-compliance Note 3",null,"Reason ",null,null,"Measures taken to prevent reoccurrence","CCS score if applicable*"]
[null,null,null,null,null,null,null,"Impact","Root cause"]
[null,"None"]
[]
["*If the Environment Agency (EA) has given a Compliance Classification Scheme (CCS) score due to a permit non-compliance it should be entered here (CCS4 = No impact; CCS3 = Minor impact; CCS2 = Significant impact; CCS1 = Major impact). If the EA has not yet assessed a non-compliance which you have notified to them, these columns should be left blank. Enter N/A if no score was given for the root cause.  "]
[]
["Summary of any complaints received and actions to taken to resolve them."]
["Date","Summary of complaint [including Line/Reference]",null,null,"Reason (including whether substantiated by the operator or the EA)",null,null,"Measures taken to prevent reoccurrence"]
["Received via EA 06/01/2025.\nabout 02/01/2025","The caller would describe the odour like smoke smell or like burning smell.\nThe caller first noticed early hours of today between 2am to 4am.             \nSome odour gets inside the house even when the doors and window are closed.\nThe caller has to keep the windows and doors shut in order to avoid/mitigate this smell.\nThe weather conditions at the time were still.\nThe caller would rate the odour at 5/6.\nThe odour is affecting the caller in the following way: They had to close the window at that time. They have health concerns arising from this issue.\nNIRS   02338535",null,null,"Location of complaint NW of site approx 0.6 miles (0.99km).\nNo issues on site, no odours recorded in on site monitoring, all emissions well within ELV. Wind v light SW.\nNot substantiated - not related to site",null,null,"N/A"]
["22nd Feb 2025","Report received by email on 25th Feb 2025 \"Strong acidic burning smell from incinerator , Saturday 22 February 2025 1.pm (onwards), No local bonfires or woodsmoke detected. Bad enough to make us shut windows.\" Reported as Holywell Hall which is due East of site. In the report to the local council the same description but listed the home address of the complainant which is in a north easterly direction from site.\nNIRS 02360591",null,null,"Location of complainant E approx 1.5 mile and NE approx 2 mile of site.\nNo issues on site, no odours recorded in on site monitoring, all emissions well within ELV. Wind v light S - SW.\nNot substantiated - not related to site\n",null,null,"N/A"]
["2025-03-02","1pm ongoing still at 1.35 pm\nA strong burning smell .\nNo bonfires or wood burning smoke visible locally\nIt is a most unpleasant smell and makes working or sitting outside in our garden barely tolerable.\"\nNIRS  02362796",null,null,"No location of complainant given other than approx 2 miles away.\nNo issues on site, no odours recorded in on site monitoring, all emissions well within ELV. Wind v light SE - SSW.\nNot substantiated - not related to site",null,null,"N/A"]
["2025-03-05"," 12 noon ongoing still at 12.38 pm\nThe strongest burning smell like plastics .\nNo bonfires or wood burning smoke visible locally\nthe unpleasant smell and makes working outside or opening windows intolerable and is almost choking at times.\nNIRS  02363723",null,null,"The location of the complainant is ENE of site approx. 1.35 miles in a straight line.\nLight variable wind ESE to SSW 3.4 - 6.4mph\nNo issues on site, no odours recorded in on site monitoring, all emissions well within ELV.\nLCC investigated & found it to be linked to forestry works near the side of the motorway & fed such back to the complainants.\nNot substantiated - not related to site",null,null,"N/A"]
["27/2/2025 but not received from EA until 31st March 2025","This complaint was only passed to site on the morning of 31st March 2025.\n\nPlease see NIRS report ref 02361729 received on 27/02/2025 relating to your site. Initially there appears to have been some confusion over what site this issue related to hence the delay in getting this to you.\nReport is as follows – \n\nThere is a recycling site burning waste and it is producing a thick black smoke \n                No odour noticeable \n                Noticed at 7:45am\n                Just smoke, no fire vsible \n                Unsure of hazardous materials \n                It is not usually this colour, usually its    grey \n                No sensitive receptors affected ",null,null,"No location of complainant given. \nWind SW at 6mph.\nNo issues on site, all emissions well within ELV.\nCCTV checked, The plume does look dark however with fully compliant emissions this is related to the angle of the sunlight on the plume. \nThere is a clear gap between the top of the stack and start of the visible plume, as common with steam plumes where dust or smoke is visible for the full length. Dark appearance is caused by interaction of the sunlight with the dense water vapour in the plume. ",null,null,"N/A"]
["2025-07-22","The odour is like burning electrical cables \nOdour was first noticed at 08:00\nWindows and doors are open, inside the home\nWeather is humid warm, rain, bit of sun \nOdour is affecting caller, eyes running, coughing\nRated 6  NIRS 02411372",null,null,"Wind WNW at 2-3 mph\nThe complainant was located WNW of site so the wind was blowing from them towards site.\nNo issues on site, no odours recorded in on site monitoring, all emissions well within ELV.\nNot substantiated - not related to site",null,null,"N/A"]
["2025-07-22","Again today the whole town stinks of burnt plastic, the wind isn’t very strong, but it’s still hot so I’ve tried to open my windows, but now my kitchen smells of burnt plastic. \nI’ve been to Asda and aldi and both areas smelt like burnt plastic. \nNo one is burning stuff in their gardens. I’ve smelt the same smell in three different places. \nThe incinerator people are lying saying that only water vapour is getting out of the stack, it plain as day reeks in Shepshed. \nI returned to Shepshed at around 8pm, stinks everywhere, I’m in my kitchen at almost 9pm (22.07.25) and I can smell the burning rubbish through a blocked nose in my kitchen. \nI’m going to have to move house again, this is truly ridiculous.\nNIRS 02411331",null,null,"Wind WNW at 2-3.4 mph\nThe complainant was located NW of site so the wind was blowing from them towards site.\nNo issues on site, no odours recorded in on site monitoring, all emissions well within ELV.\nNot substantiated - not related to site",null,null,"N/A"]

{"sheet":"Improvements","index":7,"n_rows":27,"n_cols":5,"rows_kept":27,"cut":false,"hidden":false,"merged":[[25,0,25,8],[26,0,30,8],[4,0,4,8],[5,0,7,8],[9,0,9,8],[10,0,16,8],[18,0,18,8],[19,0,23,8]]}
[{"$f":"+'Cover Page'!$B$29","v":"Annual Performance Report 2025"},null,null,null,{"$f":"+'Cover Page'!$B$33","v":"Newhurst Energy Recovery Facility"}]
[]
["Summary of Plant Improvements"]
[]
["Summary of any efficiency improvements that have been completed within the year."]
["Tuning of the grate and combustion systems by KVI (OEM)."]
[]
[]
[]
["Summary of any permit improvement conditions that have been completed within the year and the resulting environmental benefits."]
["Currently the site is permitted to operate down to 80% load as a minimum. The site and Kanadavie Inova have compelted further tuning of the plant and further measurements to prove T2S is maintained at lower load. The ability to run at lower loads allows the plant to deload but remain operational rather than having to shutdown and startup again so minimising environmental impact. This report is currently with the Environment Agency for approval of the lower load."]
[]
[]
[]
[]
[]
[]
[]
["Summary of any changes to the plant or operating techniques which required a variation to the permit and a summary of the resulting environmental impact."]
["An application for a permit variation has been made to allow use of the onsite package treatment plants as such, with discharge of the cleaned water via the site attenuation pond to Shorecliffe Brook. This is currently with the Environment Agency for determination."]
[]
[]
[]
[]
[]
["Summary of any other improvements made to the plant or planned to be made and a summary of the resulting environmental benefits."]
["As part of our efforts to monitor and measure any potential impact from the facility we have invested in an upgraded weather station and Plumecast software, as used by such as the emergency services, to monitor the plume location and spread in current weather conditions."]

{"sheet":"Public Liasion","index":8,"n_rows":32,"n_cols":5,"rows_kept":32,"cut":false,"hidden":false,"merged":[[16,0,16,1],[16,2,16,8],[15,2,15,8],[12,0,12,1],[13,0,13,1],[14,0,14,1],[12,2,12,8],[13,2,13,8],[14,2,14,8],[19,0,19,1],[19,2,19,8],[5,0,5,1],[5,2,5,8],[6,0,7,1],[6,2,7,8],[18,0,18,8],[8,0,8,1],[8,2,8,8],[9,0,9,1],[9,2,9,8],[10,0,10,1],[11,0,11,1],[10,2,10,8],[11,2,11,8],[15,0,15,1],[20,0,21,1],[20,2,21,8],[22,0,23,1],[22,2,23,8],[24,0,25,1],[24,2,25,8],[26,0,27,1],[26,2,27,8],[28,0,29,1],[28,2,29,8],[31,0,31,8]]}
[{"$f":"+'Cover Page'!$B$29","v":"Annual Performance Report 2025"},null,null,null,{"$f":"+'Cover Page'!$B$33","v":"Newhurst Energy Recovery Facility"}]
[]
["Details of Public & Stakeholder Liaison"]
[]
["Summary of events held during the reporting year."]
["Date",null,"Description"]
["25/1/2025 and 10/9/2025",null,"Local Liaison Committee Meeting."]
[]
["2025-03-06",null,"Loughborough University U3A Science & technology Group (Retired Professionals) approx 20 people"]
["2025-06-06",null,"Garendon Estate - Trustees Meeting  11 people"]
["2025-06-19",null,"Shepshed Foodbank 11 people"]
["2025-07-08",null,"Biffa Students Work Experience 4 people"]
["2025-08-13",null,"Weedon Architects &  Brush Group  11 people"]
["2025-09-09",null,"Loughborough University Students  14 people"]
["2025-09-18",null,"Loughborough University U3A Science & technology Group (Retired Professionals)  18 people"]
["19/411/2025",null,"Loughborough University & Vital Energy  11 people"]
["2025-12-10",null,"\nLoughborough University Estates & FM tour  15 people"]
[]
["List of events planned for next year"]
["Date",null,"Description"]
["Six monthly",null,"Local Liaison Committee Meeting"]
[]
[]
[]
[]
[]
[]
[]
[]
[]
[]
["If you wish to be involved in the public liaison programme, please contact _________________"]

{"sheet":"CO2 N2O","index":9,"n_rows":26,"n_cols":6,"rows_kept":26,"cut":false,"hidden":false,"merged":[[6,5,9,5],[22,2,22,3],[25,1,25,3],[16,2,16,3],[4,0,4,3],[9,0,9,3],[17,0,17,3],[13,0,13,3],[12,0,12,1],[8,2,8,3],[11,2,11,3],[19,2,19,3]]}
[{"$f":"+'Cover Page'!$B$29","v":"Annual Performance Report 2025"},null,{"$f":"+'Cover Page'!$B$33","v":"Newhurst Energy Recovery Facility"}]
[]
["Carbon dioxide emissions and biogenic content of waste inputs",null,null,null,null,"Notes:"]
[]
["Carbon dioxide emissions (all types of plant)"]
[null,"Annual mass of carbon dioxide released","tonnes ",388248.21]
[null,"Annual mass of carbon dioxide released per tonne of waste burned","t CO2 / t waste ",{"$f":"D6/'Operational Data'!G24","v":1.0900092366952283},null,"Note 1: All permits require operators to continuously monitor CO2 to EN14181 and flow to BS EN 16911-2 (unless otherwise agreed in writing). Operators must therefore use the results from these instruments to calculate their annual CO2 emissions. Where an operator does not have a flow meter calibrated to BS EN 16911-2, the averaged flow measurement from that year's periodic monitoring can be used instead. If the plant does not have calibrated CO2 CEMS, a suitably justified emissions factor can be used. \n\n"]
[null,"Annual mass of carbon dioxide released per MWh of energy exported","t CO2 / MWh export ",{"$f":"D6/'Operational Data'!G29","v":1.712487032234161}]
[null,"Description of how annual carbon dioxide mass emission has been calculated. \nSee Note 1","Direct measurement from CEMS with QAL2 on both CO2 and flow\nThis is ALL CO2 including SU and SD and with no confidence interval applied - as for pollution inventory"]
["Nitrous oxide emissions (only plants which use ammonia or urea to abate NOx emissions)"]
[null,"Annual mass emissions of nitrous oxide","tonnes N2O",0.27889999999999998]
[null,"Description of how annual nitrous oxide mass emission has been calculated\nSee Note 2","Direct measurement from CEMS with QAL2 on both nitrous oxide and flow\nThis is ALL N2O including SU and SD and with no confidence interval applied - as for pollution inventory",null,null,"Note 2: All permits require operators to continuously monitor N2O to EN14181 and flow to BS EN 16911-2, unless otherwise agreed in writing. Operators must therefore use the results from these instruments to calculate their annual N2O emissions. Where an operator does not have a flow meter calibrated to BS EN 16911-2, the averaged flow measurement from periodic monitoring can be used instead. If the plant does not have calibrated N2O CEMS, data from periodic monitoring or a suitably justified emissions factor can be used instead."]
["Total annual carbon dioxide + nitrous oxide emissions. \nSee Note 3. ",null,"tonnes CO2e",{"$f":"(D11*265)+D6","v":388322.11850000004},null,"Note 3: Total annual carbon dioxide and nitrous oxide emissions reported as carbon dioxide equivalent where 1 tonne nitrous oxide is equivalent to 265 tonnes carbon dioxide."]
["Biogenic CO2 emissions (See Note 4)",null,null,null,null,"Note 4: Only plants combusting residual municipal waste, refuse derived fuel or solid recovered fuel need complete this section. "]
[null,"Percentage of total carbon dioxide emissions arising from biogenic waste","%",0.54]
[null,"No. of measurements undertaken","Number",1]
[null,"Description of how percentage biogenic carbon dioxide emissions have been measured or calculated.\nSee Note 5","Extractive stack sample taken by Element during H2 sampling campaign and analysed by Beta Analytic Inc. Results are accredited to ISO/IEC 17025:2017 PJLA #59423 standards",null,null,"Note 5: The results from C14 sampling should be used if this is carried out at the plant (either via an installed sampler or from spot samples).  \nOtherwise, as an approximation (and in lieu of any more accurate metrics which may be developed in future), the measured or estimated biogenic fraction by net calorific value (see Note 6) can be assumed to be the same as the biogenic CO2 fraction of the total CO2 emissions from the plant. "]
["Biogenic fraction of waste feedstock (See Note 4)"]
[null,"Yearly average biogenic percentage of the waste by net calorific value (NCV)","%",0.62960000000000005]
[null,"Description of how biogenic percentage (by NCV) has been calculated or estimated. \nSee Note 6","Waste sampling. Samples taken on 4 consecutive days for each sampling campaign ",null,null,"Note 6: If C14 sampling is carried out at the plant, the methodology set out in the embedded document entitled \"Renewable Energy Association Energy Content of Fuels - Description of Method\" embedded below can be used to calculate the biogenic percentage by net calorific value. Otherwise, data from waste sampling or BIOMA software can be used; or if none of these are available, an estimated figure with justification or a figure assumed on the basis of up-to-date industry data can be used. "]
[null,"Yearly average biogenic percentage of the waste by mass","%",0.55930000000000002]
[null,"If waste sampling undertaken, no. of samples used to ascertain average biogenic percentages above","Number",12]
[null,"Description of how biogenic percentage (by mass) has been calculated or estimated. \nSee Note 7","Waste sampling. Samples taken on 4 consecutive days for each sampling campaign ",null,null,"Note 7: Where available, data from waste sampling should be used; otherwise, an estimated figure with justification can be used, or a figure assumed on the basis of up-to-date industry data. "]
[]
[null,"Comments:"]
[null,"See previous note about lower export of elec tricity which will affect these mass per MWh exported figures compared to previous years."]

{"sheet":"Residues","index":10,"n_rows":47,"n_cols":11,"rows_kept":47,"cut":false,"hidden":false,"merged":[[4,0,15,8],[4,10,13,13],[32,0,33,1],[32,2,33,6],[28,0,28,6],[29,0,29,1],[29,2,29,6],[20,0,21,6],[22,0,23,6],[24,0,25,6],[30,0,31,1],[30,2,31,6],[26,0,26,6],[37,2,38,2],[38,3,38,4],[38,5,38,6],[37,3,37,6],[36,0,36,6],[46,0,51,6],[42,3,42,4],[45,0,45,6],[37,0,38,1],[39,0,39,1],[40,0,40,1],[41,0,41,1],[42,0,42,1],[39,3,39,4],[40,3,40,4],[39,5,39,6],[40,5,40,6],[41,5,41,6],[42,5,42,6],[43,0,43,6],[41,3,41,4]]}
[{"$f":"+'Cover Page'!$B$29","v":"Annual Performance Report 2025"},null,null,null,{"$f":"+'Cover Page'!$B$33","v":"Newhurst Energy Recovery Facility"}]
[]
["Summary of Residue Handling for the reporting year"]
[]
["All IBA produced on site was collected from site by Day Aggregates to the Encyclis owned Wellingborough IBA Facility run by Day Aggregates (KP3902MB). Metals are collected seperately by Day group for re-processing by themselves or their sub-contractors.\nThroughout 2025 IBA has undergone routine ESA hazard analysis (2 samples / month analysed by WRc) and all samples have been shown to be non-hazardous. The first sample in the month of October underwent the full annual characterisation including HP1-HP15.  The site IBA has maintained its non-hazardous staus.\nThe IBA was sampled monthly for TOC until June 2024 (end of first year of operation) and quarterly after that as per permit requirements. All samples have remained under the 3% ELV.\n\nThe APCr produced at site is sent to one of the four O.C.O. plants for processing through their Accelerated Carbonation Technology where the APCr waste is reacted with Carbon Dioxide in a carbon capture process (CCU) to produce a calcium carbonate based aggregate which has End of Waste approval from the Environment Agency.",null,null,null,null,null,null,null,null,null,"Include in here a summary of residue handling regimes and destinations "]
[]
[]
[]
[]
[]
[]
[]
[]
[]
[]
[]
[]
["Residue Quality Monitoring Requirements"]
[]
["Summary of monitoring undertaken and compliance"]
["The site has continued with the usual two samples per month IBA as per ESA protocol. \nFrom July 2024 as per site permit, and with agreement of the Agency, we continued with two samples per month for ESA hazard assessment but one randomly selected per quarter was sent for full permit compliance analysis, the other five in the quarter for ESA core hazard assessment.\nAll IBA has been non-hazardous and below the permit compliance limit of 3% TOC."]
[]
["APCr has been sampled and analysed once per quarter as per site permit and analysis completed and reported as required by the permit."]
[]
["A full annual analysis including soluble fractions was completed on the October 1 sample in accordance with the protocol."]
[]
["All residue analysis was carried out for Encyclis by WRc."]
[]
["Commentary on any specific events"]
["Date & Event",null,"Description"]
[null,null,"None"]
[]
[]
[]
[]
[]
["Residue Quality Monitoring Results"]
["Parameter (unit) ",null,"Limit*","Normal Operation "]
[null,null,null,"Bottom ash  ",null,"APC Residues"]
["Loss on Ignition (average %)",null,"<5%"]
["Total Organic Carbon (average %)",null,"<3%",1.17E-2]
["No. of Assessments Undertaken",null,"---",4,null,4]
["No. of Hazardous Results",null,"---",0]
["* The permit will specify a limit of either 5% loss on ignition or 3% total organic carbon. If both are measured anyway, please enter the results here, even where the limit does not apply. "]
[]
["Comments :"]
["None"]

{"sheet":"Water","index":11,"n_rows":24,"n_cols":9,"rows_kept":24,"cut":false,"hidden":false,"merged":[[5,0,6,8],[7,0,8,8],[9,0,10,8],[12,0,12,8],[13,0,13,1],[13,2,13,8],[21,0,21,8],[22,0,22,2],[22,3,22,4],[14,0,15,1],[14,2,15,8],[16,0,17,1],[16,2,17,8],[18,0,19,1],[18,2,19,8],[23,0,23,2],[23,3,23,4],[24,0,24,2],[24,3,24,4],[25,0,25,2],[25,3,25,4],[29,0,29,2],[29,3,29,4],[26,0,26,2],[26,3,26,4],[27,0,27,2],[27,3,27,4],[28,0,28,2],[28,3,28,4]]}
[{"$f":"+'Cover Page'!$B$29","v":"Annual Performance Report 2025"},null,null,null,{"$f":"+'Cover Page'!$B$33","v":"Newhurst Energy Recovery Facility"}]
[]
["Emissions to Water"]
[]
["Summary of monitoring undertaken and compliance"]
["N/A - no emission to sewer"]
[]
[]
[]
[]
[]
[]
["Commentary on any specific events"]
["Date & Event",null,"Description"]
[]
[]
[]
[]
[]
[]
[]
["Emissions to Water / Sewer"]
["Parameter",null,null,"Monitoring Frequency",null,"Limit","Target","Max.","Average"]
["No Analysis - no emisison to sewer",null,null,"N/A"]

{"sheet":"Air (periodic) H1","index":12,"n_rows":41,"n_cols":11,"rows_kept":41,"cut":false,"hidden":false,"merged":[[5,0,6,9],[5,10,8,13],[8,0,8,9],[9,0,10,1],[9,2,10,2],[9,3,10,4],[9,5,9,9],[9,10,11,13],[11,0,11,1],[11,3,11,4],[12,0,12,1],[12,3,12,4],[13,0,13,1],[13,3,13,4],[13,10,14,12],[14,0,14,1],[14,3,14,4],[15,0,15,1],[15,3,15,4],[15,10,16,10],[15,11,16,11],[15,12,16,12],[16,0,16,1],[16,3,16,4],[17,0,17,1],[17,3,17,4],[18,0,18,1],[18,3,18,4],[19,0,19,1],[19,3,19,4],[20,0,20,1],[20,3,20,4],[21,0,21,1],[21,3,21,4],[23,0,23,1],[23,3,23,4],[24,0,24,1],[24,3,24,4],[25,0,25,1],[25,3,25,4],[26,0,26,1],[26,3,26,4],[27,0,27,1],[27,3,27,4],[28,0,28,1],[28,3,28,4],[29,0,29,1],[29,3,29,4],[30,0,30,1],[30,3,30,4],[31,0,31,1],[31,3,31,4],[32,0,32,1],[32,3,32,4],[39,0,39,9],[40,0,41,9],[22,0,22,1],[22,3,22,4],[36,0,36,1],[36,3,36,4],[37,0,37,1],[37,3,37,4],[38,0,38,1],[38,3,38,4],[33,0,33,1],[33,3,33,4],[34,0,34,1],[34,3,34,4],[35,0,35,1],[35,3,35,4]]}
[{"$f":"+'Cover Page'!$B$29","v":"Annual Performance Report 2025"},null,null,null,{"$f":"+'Cover Page'!$B$33","v":"Newhurst Energy Recovery Facility"}]
[]
["Emissions to Air (periodically monitored)"]
[]
["Summary of monitoring undertaken, standards used and compliance",null,null,null,null,null,null,null,null,null,"Notes:"]
["All analysis below completed by permit specified method. Where triplicate runs of the measurement is required the reported value is the average of the results.   NOTE:  PAHs monitoring frequency is annually as per permit Table S3.1.\nTesting completed 17th - 20th February 2025",null,null,null,null,null,null,null,null,null,"Template may require adjustment for any bespoke monitoring requirements of permit - please also check that all default ELV values, reference periods and the stated oxygen reference value match those for your plant, and edit if necessary!"]
[]
[]
["Results of emissions to air that are periodically monitored - oxygen reference 11% "]
["Substance",null,"Ref. Period","Emission Limit Value",null,"Average",null,null,null,null,"User to add additional tables as necessary, depending on whether quarterly or bi-annual reporting is required for the compliance year"]
[null,null,null,null,null,"A1","A2","A3","A4","A5"]
["Hydrogen fluoride",null,"Average of 3 consecutive measurements of at least 30 minutes each","1 mg/m3",null,2.4E-2,"N/A","N/A","N/A","N/A"]
["Cd and Tl and their compounds",null,"Average of 3 consecutive measurements of at least 30 minutes each","0.02 mg/m3",null,1.1000000000000001E-3,"N/A","N/A","N/A","N/A"]
["Hg and its compounds",null,"Average of 3 consecutive measurements of at least 30 minutes each","0.02 mg/m3",null,3.3999999999999998E-3,"N/A","N/A","N/A","N/A"]
["Sb, As, Pb, Cr, Co, Cu, Mn, Ni, V and their compounds",null,"Average of 3 consecutive measurements of at least 30 minutes each","0.3 mg/m3",null,9.4299999999999995E-2,"N/A","N/A","N/A","N/A"]
["Dioxins & Furans (I-TEQ)",null,"6-8hrs","0.06 ng/m3",null,2.0999999999999999E-3,"N/A","N/A","N/A","N/A"]
["PCBs (WHO-TEQ Humans / Mammals)",null,"6-8hrs","None set ng/m3",null,4.55E-4,"N/A","N/A","N/A","N/A"]
["PCBs (WHO-TEQ Fish)",null,"6-8hrs","None set ng/m3",null,2.4000000000000001E-5,"N/A","N/A","N/A","N/A"]
["PCBs (WHO-TEQ Birds)",null,"6-8hrs","None set ng/m3",null,1.446E-3,"N/A","N/A","N/A","N/A"]
["Dioxins & Furans (WHO-TEQ Humans / Mammals)",null,"6-8hrs","None set ng/m3",null,2E-3,"N/A","N/A","N/A","N/A"]
["Dioxins & Furans (WHO-TEQ Fish)",null,"6-8hrs","None set ng/m3",null,2.2000000000000001E-3,"N/A","N/A","N/A","N/A"]
["Dioxins & Furans (WHO-TEQ Birds)",null,"6-8hrs","None set ng/m3",null,4.1000000000000003E-3,"N/A","N/A","N/A","N/A"]
["Brominated Dioxins & Furans (I-TEQ)",null,"6-8hrs","None set ng/m3",null,8.0000000000000004E-4,"N/A","N/A","N/A","N/A"]
["Anthanthrene",null,"6-8hrs","None set µg/m3",null,"N/A","N/A","N/A","N/A","N/A"]
["Benzo(a)anthracene",null,"6-8hrs","None set µg/m3",null,"N/A","N/A","N/A","N/A","N/A"]
["Benzo(a)pyrene",null,"6-8hrs","None set µg/m3",null,"N/A","N/A","N/A","N/A","N/A"]
["Benzo(b)fluoranthene",null,"6-8hrs","None set µg/m3",null,"N/A","N/A","N/A","N/A","N/A"]
["Benzo(b)naptho(2,1-d) thiophene",null,"6-8hrs","None set µg/m3",null,"N/A","N/A","N/A","N/A","N/A"]
["Benzo(c)phenanthrene",null,"6-8hrs","None set µg/m3",null,"N/A","N/A","N/A","N/A","N/A"]
["Benzo(ghi)perylene",null,"6-8hrs","None set µg/m3",null,"N/A","N/A","N/A","N/A","N/A"]
["Benzo(k)fluoranthene",null,"6-8hrs","None set µg/m3",null,"N/A","N/A","N/A","N/A","N/A"]
["Cholanthrene",null,"6-8hrs","None set µg/m3",null,"N/A","N/A","N/A","N/A","N/A"]
["Chrysene",null,"6-8hrs","None set µg/m3",null,"N/A","N/A","N/A","N/A","N/A"]
["Cyclopenta(cd)pyrene",null,"6-8hrs","None set µg/m3",null,"N/A","N/A","N/A","N/A","N/A"]
["Dibenzo(ai)pyrene",null,"6-8hrs","None set µg/m3",null,"N/A","N/A","N/A","N/A","N/A"]
["Dibenzo(ah)anthracene",null,"6-8hrs","None set µg/m3",null,"N/A","N/A","N/A","N/A","N/A"]
["Fluoranthene",null,"6-8hrs","None set µg/m3",null,"N/A","N/A","N/A","N/A","N/A"]
["Indeno(123-cd) pyrene",null,"6-8hrs","None set µg/m3",null,"N/A","N/A","N/A","N/A","N/A"]
["Naphthalene",null,"6-8hrs","None set µg/m3",null,"N/A","N/A","N/A","N/A","N/A"]
["Comments :"]
["Values quoted above are WITHOUT the uncertainty subtracted. ‘how to assess compliance with an ELV within Monitoring stack emissions: maximum uncertainty values for periodic monitoring - GOV.UK (www.gov.uk) (formerly part of M2)' allows the uncertainty to be substracted before assessment against ELV."]

{"sheet":"Air (periodic) H2","index":13,"n_rows":41,"n_cols":11,"rows_kept":41,"cut":false,"hidden":false,"merged":[[9,0,10,1],[9,5,9,9],[9,3,10,4],[9,2,10,2],[5,10,8,13],[9,10,11,13],[8,0,8,9],[5,0,6,9],[11,0,11,1],[13,0,13,1],[14,0,14,1],[15,0,15,1],[12,0,12,1],[11,3,11,4],[12,3,12,4],[40,0,41,9],[26,0,26,1],[27,0,27,1],[23,0,23,1],[24,0,24,1],[38,0,38,1],[28,0,28,1],[29,0,29,1],[30,0,30,1],[31,0,31,1],[32,0,32,1],[33,0,33,1],[38,3,38,4],[30,3,30,4],[31,3,31,4],[37,3,37,4],[39,0,39,9],[19,0,19,1],[20,0,20,1],[21,0,21,1],[35,3,35,4],[36,3,36,4],[34,0,34,1],[35,0,35,1],[36,0,36,1],[37,0,37,1],[25,0,25,1],[33,3,33,4],[28,3,28,4],[34,3,34,4],[19,3,19,4],[20,3,20,4],[23,3,23,4],[24,3,24,4],[25,3,25,4],[32,3,32,4],[26,3,26,4],[27,3,27,4],[29,3,29,4],[22,0,22,1],[22,3,22,4],[13,10,14,12],[15,10,16,10],[15,11,16,11],[15,12,16,12],[18,3,18,4],[13,3,13,4],[14,3,14,4],[15,3,15,4],[16,3,16,4],[17,3,17,4],[21,3,21,4],[16,0,16,1],[17,0,17,1],[18,0,18,1]]}
[{"$f":"+'Cover Page'!$B$29","v":"Annual Performance Report 2025"},null,null,null,{"$f":"+'Cover Page'!$B$33","v":"Newhurst Energy Recovery Facility"}]
[]
["Emissions to Air (periodically monitored)"]
[]
["Summary of monitoring undertaken, standards used and compliance",null,null,null,null,null,null,null,null,null,"Notes:"]
["All analysis below completed by permit specified method. Where triplicate runs of the measurement is required the reported value is the average of the results.   NOTE:  PAHs monitoring frequency is annually as per permit Table S3.1\nCompleted 20th - 22nd August  2025",null,null,null,null,null,null,null,null,null,"Template may require adjustment for any bespoke monitoring requirements of permit - please also check that all default ELV values, reference periods and the stated oxygen reference value match those for your plant, and edit if necessary!"]
[]
[]
["Results of emissions to air that are periodically monitored - oxygen reference 11% "]
["Substance",null,"Ref. Period","Emission Limit Value",null,"Average",null,null,null,null,"User to add additional tables as necessary, depending on whether quarterly or bi-annual reporting is required for the compliance year"]
[null,null,null,null,null,"A1","A2","A3","A4","A5"]
["Hydrogen fluoride",null,"Average of 3 consecutive measurements of at least 30 minutes each","1 mg/m3",null,"<0.03","N/A","N/A","N/A","N/A"]
["Cd and Tl and their compounds",null,"Average of 3 consecutive measurements of at least 30 minutes each","0.02 mg/m3",null,"<0.001","N/A","N/A","N/A","N/A"]
["Hg and its compounds",null,"Average of 3 consecutive measurements of at least 30 minutes each","0.02 mg/m3",null,3.0000000000000001E-3,"N/A","N/A","N/A","N/A"]
["Sb, As, Pb, Cr, Co, Cu, Mn, Ni, V and their compounds",null,"Average of 3 consecutive measurements of at least 30 minutes each","0.3 mg/m3",null,1.0999999999999999E-2,"N/A","N/A","N/A","N/A"]
["Dioxins & Furans (I-TEQ)",null,"6-8hrs","0.06 ng/m3",null,5.21E-2,"N/A","N/A","N/A","N/A"]
["PCBs (WHO-TEQ Humans / Mammals)",null,"6-8hrs","None set ng/m3",null,3.0999999999999999E-3,"N/A","N/A","N/A","N/A"]
["PCBs (WHO-TEQ Fish)",null,"6-8hrs","None set ng/m3",null,1.2E-4,"N/A","N/A","N/A","N/A"]
["PCBs (WHO-TEQ Birds)",null,"6-8hrs","None set ng/m3",null,4.1999999999999997E-3,"N/A","N/A","N/A","N/A"]
["Dioxins & Furans (WHO-TEQ Humans / Mammals)",null,"6-8hrs","None set ng/m3",null,4.7199999999999999E-2,"N/A","N/A","N/A","N/A"]
["Dioxins & Furans (WHO-TEQ Fish)",null,"6-8hrs","None set ng/m3",null,5.1900000000000002E-2,"N/A","N/A","N/A","N/A"]
["Dioxins & Furans (WHO-TEQ Birds)",null,"6-8hrs","None set ng/m3",null,7.1800000000000003E-2,"N/A","N/A","N/A","N/A"]
["Brominated Dioxins & Furans (I-TEQ)",null,"6-8hrs","None set ng/m3",null,1.2999999999999999E-3,"N/A","N/A","N/A","N/A"]
["Anthanthrene",null,"6-8hrs","None set µg/m3",null,"<0.0014","N/A","N/A","N/A","N/A"]
["Benzo(a)anthracene",null,"6-8hrs","None set µg/m3",null,4.0000000000000001E-3,"N/A","N/A","N/A","N/A"]
["Benzo(a)pyrene",null,"6-8hrs","None set µg/m3",null,2.2000000000000001E-3,"N/A","N/A","N/A","N/A"]
["Benzo(b)fluoranthene",null,"6-8hrs","None set µg/m3",null,4.0000000000000001E-3,"N/A","N/A","N/A","N/A"]
["Benzo(b)naptho(2,1-d) thiophene",null,"6-8hrs","None set µg/m3",null,"<0.0014","N/A","N/A","N/A","N/A"]
["Benzo(c)phenanthrene",null,"6-8hrs","None set µg/m3",null,"<0.0014","N/A","N/A","N/A","N/A"]
["Benzo(ghi)perylene",null,"6-8hrs","None set µg/m3",null,2.8999999999999998E-3,"N/A","N/A","N/A","N/A"]
["Benzo(k)fluoranthene",null,"6-8hrs","None set µg/m3",null,1.6000000000000001E-3,"N/A","N/A","N/A","N/A"]
["Cholanthrene",null,"6-8hrs","None set µg/m3",null,"<0.0014","N/A","N/A","N/A","N/A"]
["Chrysene",null,"6-8hrs","None set µg/m3",null,5.5999999999999999E-3,"N/A","N/A","N/A","N/A"]
["Cyclopenta(cd)pyrene",null,"6-8hrs","None set µg/m3",null,3.0999999999999999E-3,"N/A","N/A","N/A","N/A"]
["Dibenzo(ai)pyrene",null,"6-8hrs","None set µg/m3",null,"<0.0014","N/A","N/A","N/A","N/A"]
["Dibenzo(ah)anthracene",null,"6-8hrs","None set µg/m3",null,"<0.0014","N/A","N/A","N/A","N/A"]
["Fluoranthene",null,"6-8hrs","None set µg/m3",null,5.4699999999999999E-2,"N/A","N/A","N/A","N/A"]
["Indeno(123-cd) pyrene",null,"6-8hrs","None set µg/m3",null,1.5E-3,"N/A","N/A","N/A","N/A"]
["Naphthalene",null,"6-8hrs","None set µg/m3",null,2.7,"N/A","N/A","N/A","N/A"]
["Comments :"]
["Values quoted above are WITHOUT the uncertainty subtracted. ‘how to assess compliance with an ELV within Monitoring stack emissions: maximum uncertainty values for periodic monitoring - GOV.UK (www.gov.uk) (formerly part of M2)' allows the uncertainty to be substracted before assessment against ELV."]

{"sheet":"Air (CEMS)","index":14,"n_rows":30,"n_cols":14,"rows_kept":30,"cut":false,"hidden":false,"merged":[[14,13,15,13],[14,14,15,14],[14,15,15,15],[12,13,13,15],[28,0,28,12],[30,0,31,12],[13,0,14,0],[5,0,6,12],[7,0,8,12],[10,0,10,12],[11,0,12,0],[11,2,12,2],[11,1,12,1],[11,3,11,4],[11,5,11,6],[11,7,11,8],[11,9,11,10],[11,11,11,12]]}
[{"$f":"+'Cover Page'!$B$29","v":"Annual Performance Report 2025"},null,null,null,null,null,null,null,{"$f":"+'Cover Page'!$B$33","v":"Newhurst Energy Recovery Facility"}]
[]
["Emissions to Air (continuously monitored)"]
[null,null,null,null,null,null,null,null,null,null,null,null,null,"Notes:"]
["Summary of monitoring undertaken, standards used and compliance",null,null,null,null,null,null,null,null,null,null,null,null,"Template may require adjustment for any bespoke monitoring requirements of permit"]
[null,null,null,null,null,null,null,null,null,null,null,null,null,"Please check that all default ELV values match those for your plant and edit if necessary!"]
[null,null,null,null,null,null,null,null,null,null,null,null,null,"Report to 1 decimal place"]
[]
[]
[]
["Results of emissions to air that are continuously monitored (maximum and average values for each line) - oxygen reference 11%"]
["Substance","Reference Period","Emission Limit Value","A1",null,"A2",null,"A3",null,"A4",null,"A5"]
[null,null,null,"Max.","Avg.","Max.","Avg.","Max.","Avg.","Max.","Avg.","Max.","Avg."]
["Oxides of nitrogen","Daily mean","180 mg/m3 ",169.2,155.30000000000001,"N/A","N/A","N/A","N/A","N/A","N/A","N/A","N/A"]
[null,"½ hourly mean","400 mg/m3 ",254.3,155.30000000000001,"N/A","N/A","N/A","N/A","N/A","N/A","N/A","N/A"]
["Particulates","Daily mean","5 mg/m3",0.9,0.02,"N/A","N/A","N/A","N/A","N/A","N/A","N/A","N/A"]
[null,"½ hourly mean","30 mg/m3 ",2.8,0.1,"N/A","N/A","N/A","N/A","N/A","N/A","N/A","N/A"]
["Total Organic Carbon ","Daily mean","10 mg/m3 ",0.7,0.3,"N/A","N/A","N/A","N/A","N/A","N/A","N/A","N/A"]
[null,"½ hourly mean","20 mg/m3 ",13.8,0.3,"N/A","N/A","N/A","N/A","N/A","N/A","N/A","N/A"]
["Hydrogen chloride ","Daily mean","8 mg/m3 ",7.5,6.9,"N/A","N/A","N/A","N/A","N/A","N/A","N/A","N/A"]
[null,"½ hourly mean","60 mg/m3 ",15.4,7,"N/A","N/A","N/A","N/A","N/A","N/A","N/A","N/A"]
["Sulphur dioxide","Daily mean","40 mg/m3 ",24.7,4.7,"N/A","N/A","N/A","N/A","N/A","N/A","N/A","N/A"]
[null,"½ hourly mean","200 mg/m3 ",72.7,4.8,"N/A","N/A","N/A","N/A","N/A","N/A","N/A","N/A"]
["Carbon monoxide ","Daily mean","50 mg/m3 ",22.1,7.1,"N/A","N/A","N/A","N/A","N/A","N/A","N/A","N/A"]
[null,"95%ile 10-min avg *","150 mg/m3 *",88.2,7.3,"N/A","N/A","N/A","N/A","N/A","N/A","N/A","N/A"]
["Nitrous Oxide","Daily mean","No limit",0.7,0.06,"N/A","N/A","N/A","N/A","N/A","N/A","N/A","N/A"]
[null,"½ hourly mean","No limit",5.3,0.1,"N/A","N/A","N/A","N/A","N/A","N/A","N/A","N/A"]
[" Ammonia","Daily mean","15 mg/m3 ",0.2,0,"N/A","N/A","N/A","N/A","N/A","N/A","N/A","N/A"]
["* = delete as appropriate, depending on whether your plant has half-hourly or 10-min CO ELVs\n"]
["Comments :"]

{"sheet":"HCl","index":15,"n_rows":79,"n_cols":17,"rows_kept":79,"cut":false,"hidden":false,"merged":[[12,16,15,18],[51,9,63,9],[66,9,78,9],[4,9,4,14],[4,1,4,3],[4,4,4,6],[48,0,51,6],[47,0,47,6],[6,9,18,9],[21,9,33,9],[36,9,48,9],[3,16,7,18],[9,16,11,18],[18,4,18,6]]}
[{"$f":"+'Cover Page'!$B$29","v":"Annual Performance Report 2025"},null,null,null,{"$f":"+'Cover Page'!$B$33","v":"Newhurst Energy Recovery Facility"}]
[]
["Monitoring of Hydrogen Chloride emissions",null,null,"Whole Installation",null,null,"See  Notes in Cell Q3",null,null,{"$f":"+A3","v":"Monitoring of Hydrogen Chloride emissions"},null,null,null,"Per Combustion Line",null,null,"Notes:"]
[null,null,null,null,null,null,null,null,null,null,null,null,null,null,null,null,"User to add logic to complete Whole installation, Table A5:G18. From the data in Per Combustion Line, Table J6:O79, subject to No. of lines installed"]
[{"$f":"+'Cover Page'!C39","v":2025},"1/2 Hourly Reference Periods",null,null,"Daily Reference Periods"]
["mg/Nm3","1/2 hourly HCl ELV","Monthly mean of half-hourly averages","Highest half- hourly average","Daily HCl ELV","Monthly mean of  daily averages","Highest daily average",null,null,{"$f":"+A5","v":2025},"mg/Nm3","Monthly mean of half-hourly averages","Highest half- hourly average","Monthly mean of  daily averages","Highest daily average"]
["Jan",60,{"$f":"L7","v":7},{"$f":"M7","v":9.6999999999999993},8,{"$f":"N7","v":6.9},{"$f":"O7","v":7},null,null,"A1","Jan",7,9.6999999999999993,6.9,7]
["Feb",60,{"$f":"L8","v":7},{"$f":"M8","v":11.4},8,{"$f":"N8","v":6.9},{"$f":"O8","v":7},null,null,null,"Feb",7,11.4,6.9,7]
["Mar",60,7,12.3,8,6.9,7.1,null,null,null,"Mar",7,12.3,6.9,7.1,null,"Whole Installation table A5:G18:"]
["Apr",60,6.9,9.5,8,6.8,7.1,null,null,null,"Apr",6.9,9.5,6.8,7.1,null,"Mean: for 1/2 hourly and daily periods calculate mean of values across all operational combustion lines for the month"]
["May",60,7,13.2,8,7,7.3,null,null,null,"May",7,13.2,7,7.3]
["Jun",60,7,10.1,8,6.9,7.2,null,null,null,"Jun",7,10.1,6.9,7.2]
["Jul",60,6.9,10,8,6.8,7,null,null,null,"Jul",6.9,10,6.8,7,null,"Maximum: for 1/2 hourly and daily periods use the highest value across all operational combustion lines for the month"]
["Aug",60,7,10,8,6.9,7.5,null,null,null,"Aug",7,10,6.9,7.5]
["Sep",60,7,10.7,8,6.9,7.1,null,null,null,"Sep",7,10.7,6.9,7.1]
["Oct",60,6.9,10.1,8,6.9,7.1,null,null,null,"Oct",6.9,10.1,6.9,7.1]
["Nov",60,6.9,15.4,8,6.9,7.1,null,null,null,"Nov",6.9,15.4,6.9,7.1]
["Dec",60,6.9,10.3,8,6.9,7,null,null,null,"Dec",6.9,10.3,6.9,7]
[null,null,null,null,null,null,null,null,null,null,"Annual",{"$f":"AVERAGE(L7:L18)","v":6.9583333333333348},{"$f":"MAX(M7:M18)","v":15.4},{"$f":"AVERAGE(N7:N18)","v":6.8916666666666666},{"$f":"MAX(O7:O18)","v":7.5}]
[]
[null,null,null,null,null,null,null,null,null,{"$f":"+A5","v":2025},"mg/Nm3","Monthly mean of half-hourly averages","Highest half- hourly average","Monthly mean of  daily averages","Highest daily average"]
[null,null,null,null,null,null,null,null,null,"A2","Jan","N/A","N/A","N/A","N/A"]
[null,null,null,null,null,null,null,null,null,null,"Feb","N/A","N/A","N/A","N/A"]
[null,null,null,null,null,null,null,null,null,null,"Mar","N/A","N/A","N/A","N/A"]
[null,null,null,null,null,null,null,null,null,null,"Apr","N/A","N/A","N/A","N/A"]
[null,null,null,null,null,null,null,null,null,null,"May","N/A","N/A","N/A","N/A"]
[null,null,null,null,null,null,null,null,null,null,"Jun","N/A","N/A","N/A","N/A"]
[null,null,null,null,null,null,null,null,null,null,"Jul","N/A","N/A","N/A","N/A"]
[null,null,null,null,null,null,null,null,null,null,"Aug","N/A","N/A","N/A","N/A"]
[null,null,null,null,null,null,null,null,null,null,"Sep","N/A","N/A","N/A","N/A"]
[null,null,null,null,null,null,null,null,null,null,"Oct","N/A","N/A","N/A","N/A"]
[null,null,null,null,null,null,null,null,null,null,"Nov","N/A","N/A","N/A","N/A"]
[null,null,null,null,null,null,null,null,null,null,"Dec","N/A","N/A","N/A","N/A"]
[null,null,null,null,null,null,null,null,null,null,"Annual",{"$f":"AVERAGE(L22:L33)","v":{"$error":"#DIV/0!"}},{"$f":"MAX(M22:M33)","v":0},{"$f":"AVERAGE(N22:N33)","v":{"$error":"#DIV/0!"}},{"$f":"MAX(O22:O33)","v":0}]
[]
[null,null,null,null,null,null,null,null,null,{"$f":"+A5","v":2025},"mg/Nm3","Monthly mean of half-hourly averages","Highest half- hourly average","Monthly mean of  daily averages","Highest daily average"]
[null,null,null,null,null,null,null,null,null,"A3","Jan","N/A","N/A","N/A","N/A"]
[null,null,null,null,null,null,null,null,null,null,"Feb","N/A","N/A","N/A","N/A"]
[null,null,null,null,null,null,null,null,null,null,"Mar","N/A","N/A","N/A","N/A"]
[null,null,null,null,null,null,null,null,null,null,"Apr","N/A","N/A","N/A","N/A"]
[null,null,null,null,null,null,null,null,null,null,"May","N/A","N/A","N/A","N/A"]
[null,null,null,null,null,null,null,null,null,null,"Jun","N/A","N/A","N/A","N/A"]
[null,null,null,null,null,null,null,null,null,null,"Jul","N/A","N/A","N/A","N/A"]
[null,null,null,null,null,null,null,null,null,null,"Aug","N/A","N/A","N/A","N/A"]
[null,null,null,null,null,null,null,null,null,null,"Sep","N/A","N/A","N/A","N/A"]
[null,null,null,null,null,null,null,null,null,null,"Oct","N/A","N/A","N/A","N/A"]
[null,null,null,null,null,null,null,null,null,null,"Nov","N/A","N/A","N/A","N/A"]
["Comments :",null,null,null,null,null,null,null,null,null,"Dec","N/A","N/A","N/A","N/A"]
[null,null,null,null,null,null,null,null,null,null,"Annual",{"$f":"AVERAGE(L37:L48)","v":{"$error":"#DIV/0!"}},{"$f":"MAX(M37:M48)","v":0},{"$f":"AVERAGE(N37:N48)","v":{"$error":"#DIV/0!"}},{"$f":"MAX(O37:O48)","v":0}]
[]
[null,null,null,null,null,null,null,null,null,{"$f":"+A5","v":2025},"mg/Nm3","Monthly mean of half-hourly averages","Highest half- hourly average","Monthly mean of  daily averages","Highest daily average"]
[null,null,null,null,null,null,null,null,null,"A4","Jan","N/A","N/A","N/A","N/A"]
[null,null,null,null,null,null,null,null,null,null,"Feb","N/A","N/A","N/A","N/A"]
[null,null,null,null,null,null,null,null,null,null,"Mar","N/A","N/A","N/A","N/A"]
[null,null,null,null,null,null,null,null,null,null,"Apr","N/A","N/A","N/A","N/A"]
[null,null,null,null,null,null,null,null,null,null,"May","N/A","N/A","N/A","N/A"]
[null,null,null,null,null,null,null,null,null,null,"Jun","N/A","N/A","N/A","N/A"]
[null,null,null,null,null,null,null,null,null,null,"Jul","N/A","N/A","N/A","N/A"]
[null,null,null,null,null,null,null,null,null,null,"Aug","N/A","N/A","N/A","N/A"]
[null,null,null,null,null,null,null,null,null,null,"Sep","N/A","N/A","N/A","N/A"]
[null,null,null,null,null,null,null,null,null,null,"Oct","N/A","N/A","N/A","N/A"]
[null,null,null,null,null,null,null,null,null,null,"Nov","N/A","N/A","N/A","N/A"]
[null,null,null,null,null,null,null,null,null,null,"Dec","N/A","N/A","N/A","N/A"]
[null,null,null,null,null,null,null,null,null,null,"Annual",{"$f":"AVERAGE(L52:L63)","v":{"$error":"#DIV/0!"}},{"$f":"MAX(M52:M63)","v":0},{"$f":"AVERAGE(N52:N63)","v":{"$error":"#DIV/0!"}},{"$f":"MAX(O52:O63)","v":0}]
[]
[null,null,null,null,null,null,null,null,null,{"$f":"+A5","v":2025},"mg/Nm3","Monthly mean of half-hourly averages","Highest half- hourly average","Monthly mean of  daily averages","Highest daily average"]
[null,null,null,null,null,null,null,null,null,"A5","Jan","N/A","N/A","N/A","N/A"]
[null,null,null,null,null,null,null,null,null,null,"Feb","N/A","N/A","N/A","N/A"]
[null,null,null,null,null,null,null,null,null,null,"Mar","N/A","N/A","N/A","N/A"]
[null,null,null,null,null,null,null,null,null,null,"Apr","N/A","N/A","N/A","N/A"]
[null,null,null,null,null,null,null,null,null,null,"May","N/A","N/A","N/A","N/A"]
[null,null,null,null,null,null,null,null,null,null,"Jun","N/A","N/A","N/A","N/A"]
[null,null,null,null,null,null,null,null,null,null,"Jul","N/A","N/A","N/A","N/A"]
[null,null,null,null,null,null,null,null,null,null,"Aug","N/A","N/A","N/A","N/A"]
[null,null,null,null,null,null,null,null,null,null,"Sep","N/A","N/A","N/A","N/A"]
[null,null,null,null,null,null,null,null,null,null,"Oct","N/A","N/A","N/A","N/A"]
[null,null,null,null,null,null,null,null,null,null,"Nov","N/A","N/A","N/A","N/A"]
[null,null,null,null,null,null,null,null,null,null,"Dec","N/A","N/A","N/A","N/A"]
[null,null,null,null,null,null,null,null,null,null,"Annual",{"$f":"AVERAGE(L67:L78)","v":{"$error":"#DIV/0!"}},{"$f":"MAX(M67:M78)","v":0},{"$f":"AVERAGE(N67:N78)","v":{"$error":"#DIV/0!"}},{"$f":"MAX(O67:O78)","v":0}]

{"sheet":"SO2","index":16,"n_rows":79,"n_cols":17,"rows_kept":79,"cut":false,"hidden":false,"merged":[[3,16,7,18],[9,16,11,18],[12,16,15,18],[66,9,78,9],[4,1,4,3],[4,4,4,6],[4,9,4,14],[6,9,18,9],[21,9,33,9],[36,9,48,9],[47,0,47,6],[48,0,51,6],[51,9,63,9],[18,4,18,6]]}
[{"$f":"+'Cover Page'!$B$29","v":"Annual Performance Report 2025"},null,null,null,{"$f":"+'Cover Page'!$B$33","v":"Newhurst Energy Recovery Facility"}]
[]
["Monitoring of Sulphur dioxide emissions",null,null,"Whole Installation",null,null,"See  Notes in Cell Q3",null,null,{"$f":"+A3","v":"Monitoring of Sulphur dioxide emissions"},null,null,null,"Per Combustion Line",null,null,"Notes:"]
[null,null,null,null,null,null,null,null,null,null,null,null,null,null,null,null,"User to add logic to complete Whole installation, Table A5:G18. From the data in Per Combustion Line, Table J6:O79, subject to No. of lines installed"]
[{"$f":"+'Cover Page'!C39","v":2025},"1/2 Hourly Reference Periods",null,null,"Daily Reference Periods"]
["mg/Nm3","1/2 hourly SO2 ELV","Monthly mean of half-hourly averages","Highest half- hourly average","Daily SO2 ELV","Monthly mean of  daily averages","Highest daily average",null,null,{"$f":"+A5","v":2025},"mg/Nm3","Monthly mean of half-hourly averages","Highest half- hourly average","Monthly mean of  daily averages","Highest daily average"]
["Jan",200,{"$f":"L7","v":4.0999999999999996},{"$f":"M7","v":20.8},40,{"$f":"N7","v":4},{"$f":"O7","v":6.7},null,null,"A1","Jan",4.0999999999999996,20.8,4,6.7]
["Feb",200,{"$f":"L8","v":3.6},{"$f":"M8","v":16.600000000000001},40,{"$f":"N8","v":3.6},{"$f":"O8","v":6.6},null,null,null,"Feb",3.6,16.600000000000001,3.6,6.6]
["Mar",200,4.0999999999999996,37.799999999999997,40,4,5.7,null,null,null,"Mar",4.0999999999999996,37.799999999999997,4,5.7,null,"Whole Installation table A5:G18:"]
["Apr",200,7.9,31.8,40,7.2,24.7,null,null,null,"Apr",7.9,31.8,7.2,24.7,null,"Mean: for 1/2 hourly and daily periods calculate mean of values across all operational combustion lines for the month"]
["May",200,3.5,21.1,40,3.5,6.1,null,null,null,"May",3.5,21.1,3.5,6.1]
["Jun",200,3.4,17.600000000000001,40,3.4,6.3,null,null,null,"Jun",3.4,17.600000000000001,3.4,6.3]
["Jul",200,5.2,14.5,40,5.0999999999999996,7.4,null,null,null,"Jul",5.2,14.5,5.0999999999999996,7.4,null,"Maximum: for 1/2 hourly and daily periods use the highest value across all operational combustion lines for the month"]
["Aug",200,4.5,15.1,40,4.5,7.4,null,null,null,"Aug",4.5,15.1,4.5,7.4]
["Sep",200,4.9000000000000004,31.3,40,4.9000000000000004,6.7,null,null,null,"Sep",4.9000000000000004,31.3,4.9000000000000004,6.7]
["Oct",200,4.8,18.2,40,4.7,6.7,null,null,null,"Oct",4.8,18.2,4.7,6.7]
["Nov",200,5.2,72.7,40,5.2,7.9,null,null,null,"Nov",5.2,72.7,5.2,7.9]
["Dec",200,5.8,22.7,40,5.7,7.5,null,null,null,"Dec",5.8,22.7,5.7,7.5]
[null,null,null,null,null,null,null,null,null,null,"Annual",{"$f":"AVERAGE(L7:L18)","v":4.7499999999999991},{"$f":"MAX(M7:M18)","v":72.7},{"$f":"AVERAGE(N7:N18)","v":4.6500000000000004},{"$f":"MAX(O7:O18)","v":24.7}]
[]
[null,null,null,null,null,null,null,null,null,{"$f":"+A5","v":2025},"mg/Nm3","Monthly mean of half-hourly averages","Highest half- hourly average","Monthly mean of  daily averages","Highest daily average"]
[null,null,null,null,null,null,null,null,null,"A2","Jan","N/A","N/A","N/A","N/A"]
[null,null,null,null,null,null,null,null,null,null,"Feb","N/A","N/A","N/A","N/A"]
[null,null,null,null,null,null,null,null,null,null,"Mar","N/A","N/A","N/A","N/A"]
[null,null,null,null,null,null,null,null,null,null,"Apr","N/A","N/A","N/A","N/A"]
[null,null,null,null,null,null,null,null,null,null,"May","N/A","N/A","N/A","N/A"]
[null,null,null,null,null,null,null,null,null,null,"Jun","N/A","N/A","N/A","N/A"]
[null,null,null,null,null,null,null,null,null,null,"Jul","N/A","N/A","N/A","N/A"]
[null,null,null,null,null,null,null,null,null,null,"Aug","N/A","N/A","N/A","N/A"]
[null,null,null,null,null,null,null,null,null,null,"Sep","N/A","N/A","N/A","N/A"]
[null,null,null,null,null,null,null,null,null,null,"Oct","N/A","N/A","N/A","N/A"]
[null,null,null,null,null,null,null,null,null,null,"Nov","N/A","N/A","N/A","N/A"]
[null,null,null,null,null,null,null,null,null,null,"Dec","N/A","N/A","N/A","N/A"]
[null,null,null,null,null,null,null,null,null,null,"Annual",{"$f":"AVERAGE(L22:L33)","v":{"$error":"#DIV/0!"}},{"$f":"MAX(M22:M33)","v":0},{"$f":"AVERAGE(N22:N33)","v":{"$error":"#DIV/0!"}},{"$f":"MAX(O22:O33)","v":0}]
[]
[null,null,null,null,null,null,null,null,null,{"$f":"+A5","v":2025},"mg/Nm3","Monthly mean of half-hourly averages","Highest half- hourly average","Monthly mean of  daily averages","Highest daily average"]
[null,null,null,null,null,null,null,null,null,"A3","Jan","N/A","N/A","N/A","N/A"]
[null,null,null,null,null,null,null,null,null,null,"Feb","N/A","N/A","N/A","N/A"]
[null,null,null,null,null,null,null,null,null,null,"Mar","N/A","N/A","N/A","N/A"]
[null,null,null,null,null,null,null,null,null,null,"Apr","N/A","N/A","N/A","N/A"]
[null,null,null,null,null,null,null,null,null,null,"May","N/A","N/A","N/A","N/A"]
[null,null,null,null,null,null,null,null,null,null,"Jun","N/A","N/A","N/A","N/A"]
[null,null,null,null,null,null,null,null,null,null,"Jul","N/A","N/A","N/A","N/A"]
[null,null,null,null,null,null,null,null,null,null,"Aug","N/A","N/A","N/A","N/A"]
[null,null,null,null,null,null,null,null,null,null,"Sep","N/A","N/A","N/A","N/A"]
[null,null,null,null,null,null,null,null,null,null,"Oct","N/A","N/A","N/A","N/A"]
[null,null,null,null,null,null,null,null,null,null,"Nov","N/A","N/A","N/A","N/A"]
["Comments :",null,null,null,null,null,null,null,null,null,"Dec","N/A","N/A","N/A","N/A"]
[null,null,null,null,null,null,null,null,null,null,"Annual",{"$f":"AVERAGE(L37:L48)","v":{"$error":"#DIV/0!"}},{"$f":"MAX(M37:M48)","v":0},{"$f":"AVERAGE(N37:N48)","v":{"$error":"#DIV/0!"}},{"$f":"MAX(O37:O48)","v":0}]
[]
[null,null,null,null,null,null,null,null,null,{"$f":"+A5","v":2025},"mg/Nm3","Monthly mean of half-hourly averages","Highest half- hourly average","Monthly mean of  daily averages","Highest daily average"]
[null,null,null,null,null,null,null,null,null,"A4","Jan","N/A","N/A","N/A","N/A"]
[null,null,null,null,null,null,null,null,null,null,"Feb","N/A","N/A","N/A","N/A"]
[null,null,null,null,null,null,null,null,null,null,"Mar","N/A","N/A","N/A","N/A"]
[null,null,null,null,null,null,null,null,null,null,"Apr","N/A","N/A","N/A","N/A"]
[null,null,null,null,null,null,null,null,null,null,"May","N/A","N/A","N/A","N/A"]
[null,null,null,null,null,null,null,null,null,null,"Jun","N/A","N/A","N/A","N/A"]
[null,null,null,null,null,null,null,null,null,null,"Jul","N/A","N/A","N/A","N/A"]
[null,null,null,null,null,null,null,null,null,null,"Aug","N/A","N/A","N/A","N/A"]
[null,null,null,null,null,null,null,null,null,null,"Sep","N/A","N/A","N/A","N/A"]
[null,null,null,null,null,null,null,null,null,null,"Oct","N/A","N/A","N/A","N/A"]
[null,null,null,null,null,null,null,null,null,null,"Nov","N/A","N/A","N/A","N/A"]
[null,null,null,null,null,null,null,null,null,null,"Dec","N/A","N/A","N/A","N/A"]
[null,null,null,null,null,null,null,null,null,null,"Annual",{"$f":"AVERAGE(L52:L63)","v":{"$error":"#DIV/0!"}},{"$f":"MAX(M52:M63)","v":0},{"$f":"AVERAGE(N52:N63)","v":{"$error":"#DIV/0!"}},{"$f":"MAX(O52:O63)","v":0}]
[]
[null,null,null,null,null,null,null,null,null,{"$f":"+A5","v":2025},"mg/Nm3","Monthly mean of half-hourly averages","Highest half- hourly average","Monthly mean of  daily averages","Highest daily average"]
[null,null,null,null,null,null,null,null,null,"A5","Jan","N/A","N/A","N/A","N/A"]
[null,null,null,null,null,null,null,null,null,null,"Feb","N/A","N/A","N/A","N/A"]
[null,null,null,null,null,null,null,null,null,null,"Mar","N/A","N/A","N/A","N/A"]
[null,null,null,null,null,null,null,null,null,null,"Apr","N/A","N/A","N/A","N/A"]
[null,null,null,null,null,null,null,null,null,null,"May","N/A","N/A","N/A","N/A"]
[null,null,null,null,null,null,null,null,null,null,"Jun","N/A","N/A","N/A","N/A"]
[null,null,null,null,null,null,null,null,null,null,"Jul","N/A","N/A","N/A","N/A"]
[null,null,null,null,null,null,null,null,null,null,"Aug","N/A","N/A","N/A","N/A"]
[null,null,null,null,null,null,null,null,null,null,"Sep","N/A","N/A","N/A","N/A"]
[null,null,null,null,null,null,null,null,null,null,"Oct","N/A","N/A","N/A","N/A"]
[null,null,null,null,null,null,null,null,null,null,"Nov","N/A","N/A","N/A","N/A"]
[null,null,null,null,null,null,null,null,null,null,"Dec","N/A","N/A","N/A","N/A"]
[null,null,null,null,null,null,null,null,null,null,"Annual",{"$f":"AVERAGE(L67:L78)","v":{"$error":"#DIV/0!"}},{"$f":"MAX(M67:M78)","v":0},{"$f":"AVERAGE(N67:N78)","v":{"$error":"#DIV/0!"}},{"$f":"MAX(O67:O78)","v":0}]

{"sheet":"NOx","index":17,"n_rows":79,"n_cols":17,"rows_kept":79,"cut":false,"hidden":false,"merged":[[3,16,7,18],[9,16,11,18],[12,16,15,18],[66,9,78,9],[4,1,4,3],[4,4,4,6],[4,9,4,14],[6,9,18,9],[21,9,33,9],[36,9,48,9],[47,0,47,6],[48,0,51,6],[51,9,63,9],[18,4,18,6]]}
[{"$f":"+'Cover Page'!$B$29","v":"Annual Performance Report 2025"},null,null,null,{"$f":"+'Cover Page'!$B$33","v":"Newhurst Energy Recovery Facility"}]
[]
["Monitoring of Oxides of Nitrogen emissions",null,null,"Whole Installation",null,null,"See  Notes in Cell Q3",null,null,{"$f":"+A3","v":"Monitoring of Oxides of Nitrogen emissions"},null,null,null,"Per Combustion Line",null,null,"Notes:"]
[null,null,null,null,null,null,null,null,null,null,null,null,null,null,null,null,"User to add logic to complete Whole installation, Table A5:G18. From the data in Per Combustion Line, Table J6:O79, subject to No. of lines installed"]
[{"$f":"+'Cover Page'!C39","v":2025},"1/2 Hourly Reference Periods",null,null,"Daily Reference Periods"]
["mg/Nm3","1/2 hourly NOx ELV","Monthly mean of half-hourly averages","Highest half- hourly average","Daily NOx ELV","Monthly mean of  daily averages","Highest daily average",null,null,{"$f":"+A5","v":2025},"mg/Nm3","Monthly mean of half-hourly averages","Highest half- hourly average","Monthly mean of  daily averages","Highest daily average"]
["Jan",400,{"$f":"L7","v":151.5},{"$f":"M7","v":203.2},180,{"$f":"N7","v":151.30000000000001},{"$f":"O7","v":169.2},null,null,"A1","Jan",151.5,203.2,151.30000000000001,169.2]
["Feb",400,{"$f":"L8","v":143.80000000000001},{"$f":"M8","v":185.8},180,{"$f":"N8","v":143.69999999999999},{"$f":"O8","v":154},null,null,null,"Feb",143.80000000000001,185.8,143.69999999999999,154]
["Mar",400,143.1,186.6,180,142.9,152.1,null,null,null,"Mar",143.1,186.6,142.9,152.1,null,"Whole Installation table A5:G18:"]
["Apr",400,148.80000000000001,254.3,180,148.6,158.19999999999999,null,null,null,"Apr",148.80000000000001,254.3,148.6,158.19999999999999,null,"Mean: for 1/2 hourly and daily periods calculate mean of values across all operational combustion lines for the month"]
["May",400,142.19999999999999,220.6,180,142.19999999999999,160.19999999999999,null,null,null,"May",142.19999999999999,220.6,142.19999999999999,160.19999999999999]
["Jun",400,157.5,229,180,157.69999999999999,165.5,null,null,null,"Jun",157.5,229,157.69999999999999,165.5]
["Jul",400,161.19999999999999,243.8,180,161.19999999999999,165.9,null,null,null,"Jul",161.19999999999999,243.8,161.19999999999999,165.9,null,"Maximum: for 1/2 hourly and daily periods use the highest value across all operational combustion lines for the month"]
["Aug",400,161,216.8,180,160.9,165,null,null,null,"Aug",161,216.8,160.9,165]
["Sep",400,163.4,217.5,180,163.19999999999999,166.3,null,null,null,"Sep",163.4,217.5,163.19999999999999,166.3]
["Oct",400,162.4,214.7,180,162.4,165.3,null,null,null,"Oct",162.4,214.7,162.4,165.3]
["Nov",400,164.7,209.7,180,164.6,165.9,null,null,null,"Nov",164.7,209.7,164.6,165.9]
["Dec",400,164.5,201.7,180,164.4,165.9,null,null,null,"Dec",164.5,201.7,164.4,165.9]
[null,null,null,null,null,null,null,null,null,null,"Annual",{"$f":"AVERAGE(L7:L18)","v":155.3416666666667},{"$f":"MAX(M7:M18)","v":254.3},{"$f":"AVERAGE(N7:N18)","v":155.25833333333335},{"$f":"MAX(O7:O18)","v":169.2}]
[]
[null,null,null,null,null,null,null,null,null,{"$f":"+A5","v":2025},"mg/Nm3","Monthly mean of half-hourly averages","Highest half- hourly average","Monthly mean of  daily averages","Highest daily average"]
[null,null,null,null,null,null,null,null,null,"A2","Jan","N/A","N/A","N/A","N/A"]
[null,null,null,null,null,null,null,null,null,null,"Feb","N/A","N/A","N/A","N/A"]
[null,null,null,null,null,null,null,null,null,null,"Mar","N/A","N/A","N/A","N/A"]
[null,null,null,null,null,null,null,null,null,null,"Apr","N/A","N/A","N/A","N/A"]
[null,null,null,null,null,null,null,null,null,null,"May","N/A","N/A","N/A","N/A"]
[null,null,null,null,null,null,null,null,null,null,"Jun","N/A","N/A","N/A","N/A"]
[null,null,null,null,null,null,null,null,null,null,"Jul","N/A","N/A","N/A","N/A"]
[null,null,null,null,null,null,null,null,null,null,"Aug","N/A","N/A","N/A","N/A"]
[null,null,null,null,null,null,null,null,null,null,"Sep","N/A","N/A","N/A","N/A"]
[null,null,null,null,null,null,null,null,null,null,"Oct","N/A","N/A","N/A","N/A"]
[null,null,null,null,null,null,null,null,null,null,"Nov","N/A","N/A","N/A","N/A"]
[null,null,null,null,null,null,null,null,null,null,"Dec","N/A","N/A","N/A","N/A"]
[null,null,null,null,null,null,null,null,null,null,"Annual",{"$f":"AVERAGE(L22:L33)","v":{"$error":"#DIV/0!"}},{"$f":"MAX(M22:M33)","v":0},{"$f":"AVERAGE(N22:N33)","v":{"$error":"#DIV/0!"}},{"$f":"MAX(O22:O33)","v":0}]
[]
[null,null,null,null,null,null,null,null,null,{"$f":"+A5","v":2025},"mg/Nm3","Monthly mean of half-hourly averages","Highest half- hourly average","Monthly mean of  daily averages","Highest daily average"]
[null,null,null,null,null,null,null,null,null,"A3","Jan","N/A","N/A","N/A","N/A"]
[null,null,null,null,null,null,null,null,null,null,"Feb","N/A","N/A","N/A","N/A"]
[null,null,null,null,null,null,null,null,null,null,"Mar","N/A","N/A","N/A","N/A"]
[null,null,null,null,null,null,null,null,null,null,"Apr","N/A","N/A","N/A","N/A"]
[null,null,null,null,null,null,null,null,null,null,"May","N/A","N/A","N/A","N/A"]
[null,null,null,null,null,null,null,null,null,null,"Jun","N/A","N/A","N/A","N/A"]
[null,null,null,null,null,null,null,null,null,null,"Jul","N/A","N/A","N/A","N/A"]
[null,null,null,null,null,null,null,null,null,null,"Aug","N/A","N/A","N/A","N/A"]
[null,null,null,null,null,null,null,null,null,null,"Sep","N/A","N/A","N/A","N/A"]
[null,null,null,null,null,null,null,null,null,null,"Oct","N/A","N/A","N/A","N/A"]
[null,null,null,null,null,null,null,null,null,null,"Nov","N/A","N/A","N/A","N/A"]
["Comments :",null,null,null,null,null,null,null,null,null,"Dec","N/A","N/A","N/A","N/A"]
[null,null,null,null,null,null,null,null,null,null,"Annual",{"$f":"AVERAGE(L37:L48)","v":{"$error":"#DIV/0!"}},{"$f":"MAX(M37:M48)","v":0},{"$f":"AVERAGE(N37:N48)","v":{"$error":"#DIV/0!"}},{"$f":"MAX(O37:O48)","v":0}]
[]
[null,null,null,null,null,null,null,null,null,{"$f":"+A5","v":2025},"mg/Nm3","Monthly mean of half-hourly averages","Highest half- hourly average","Monthly mean of  daily averages","Highest daily average"]
[null,null,null,null,null,null,null,null,null,"A4","Jan","N/A","N/A","N/A","N/A"]
[null,null,null,null,null,null,null,null,null,null,"Feb","N/A","N/A","N/A","N/A"]
[null,null,null,null,null,null,null,null,null,null,"Mar","N/A","N/A","N/A","N/A"]
[null,null,null,null,null,null,null,null,null,null,"Apr","N/A","N/A","N/A","N/A"]
[null,null,null,null,null,null,null,null,null,null,"May","N/A","N/A","N/A","N/A"]
[null,null,null,null,null,null,null,null,null,null,"Jun","N/A","N/A","N/A","N/A"]
[null,null,null,null,null,null,null,null,null,null,"Jul","N/A","N/A","N/A","N/A"]
[null,null,null,null,null,null,null,null,null,null,"Aug","N/A","N/A","N/A","N/A"]
[null,null,null,null,null,null,null,null,null,null,"Sep","N/A","N/A","N/A","N/A"]
[null,null,null,null,null,null,null,null,null,null,"Oct","N/A","N/A","N/A","N/A"]
[null,null,null,null,null,null,null,null,null,null,"Nov","N/A","N/A","N/A","N/A"]
[null,null,null,null,null,null,null,null,null,null,"Dec","N/A","N/A","N/A","N/A"]
[null,null,null,null,null,null,null,null,null,null,"Annual",{"$f":"AVERAGE(L52:L63)","v":{"$error":"#DIV/0!"}},{"$f":"MAX(M52:M63)","v":0},{"$f":"AVERAGE(N52:N63)","v":{"$error":"#DIV/0!"}},{"$f":"MAX(O52:O63)","v":0}]
[]
[null,null,null,null,null,null,null,null,null,{"$f":"+A5","v":2025},"mg/Nm3","Monthly mean of half-hourly averages","Highest half- hourly average","Monthly mean of  daily averages","Highest daily average"]
[null,null,null,null,null,null,null,null,null,"A5","Jan","N/A","N/A","N/A","N/A"]
[null,null,null,null,null,null,null,null,null,null,"Feb","N/A","N/A","N/A","N/A"]
[null,null,null,null,null,null,null,null,null,null,"Mar","N/A","N/A","N/A","N/A"]
[null,null,null,null,null,null,null,null,null,null,"Apr","N/A","N/A","N/A","N/A"]
[null,null,null,null,null,null,null,null,null,null,"May","N/A","N/A","N/A","N/A"]
[null,null,null,null,null,null,null,null,null,null,"Jun","N/A","N/A","N/A","N/A"]
[null,null,null,null,null,null,null,null,null,null,"Jul","N/A","N/A","N/A","N/A"]
[null,null,null,null,null,null,null,null,null,null,"Aug","N/A","N/A","N/A","N/A"]
[null,null,null,null,null,null,null,null,null,null,"Sep","N/A","N/A","N/A","N/A"]
[null,null,null,null,null,null,null,null,null,null,"Oct","N/A","N/A","N/A","N/A"]
[null,null,null,null,null,null,null,null,null,null,"Nov","N/A","N/A","N/A","N/A"]
[null,null,null,null,null,null,null,null,null,null,"Dec","N/A","N/A","N/A","N/A"]
[null,null,null,null,null,null,null,null,null,null,"Annual",{"$f":"AVERAGE(L67:L78)","v":{"$error":"#DIV/0!"}},{"$f":"MAX(M67:M78)","v":0},{"$f":"AVERAGE(N67:N78)","v":{"$error":"#DIV/0!"}},{"$f":"MAX(O67:O78)","v":0}]

{"sheet":"TOC","index":18,"n_rows":79,"n_cols":17,"rows_kept":79,"cut":false,"hidden":false,"merged":[[3,16,7,18],[9,16,11,18],[12,16,15,18],[66,9,78,9],[4,1,4,3],[4,4,4,6],[4,9,4,14],[6,9,18,9],[21,9,33,9],[36,9,48,9],[47,0,47,6],[48,0,51,6],[51,9,63,9]]}
[{"$f":"+'Cover Page'!$B$29","v":"Annual Performance Report 2025"},null,null,null,{"$f":"+'Cover Page'!$B$33","v":"Newhurst Energy Recovery Facility"}]
[]
["Monitoring of Total organic carbon emissions",null,null,"Whole Installation",null,null,"See  Notes in Cell Q3",null,null,{"$f":"+A3","v":"Monitoring of Total organic carbon emissions"},null,null,null,"Per Combustion Line",null,null,"Notes:"]
[null,null,null,null,null,null,null,null,null,null,null,null,null,null,null,null,"User to add logic to complete Whole installation, Table A5:G18. From the data in Per Combustion Line, Table J6:O79, subject to No. of lines installed"]
[{"$f":"+'Cover Page'!C39","v":2025},"1/2 Hourly Reference Periods",null,null,"Daily Reference Periods"]
["mg/Nm3","1/2 hourly TOC ELV","Monthly mean of half-hourly averages","Highest half- hourly average","Daily TOC ELV","Monthly mean of  daily averages","Highest daily average",null,null,{"$f":"+A5","v":2025},"mg/Nm3","Monthly mean of half-hourly averages","Highest half- hourly average","Monthly mean of  daily averages","Highest daily average"]
["Jan",20,{"$f":"L7","v":0.3},{"$f":"M7","v":8.1},10,{"$f":"N7","v":0.2},{"$f":"O7","v":0.6},null,null,"A1","Jan",0.3,8.1,0.2,0.6]
["Feb",20,{"$f":"L8","v":0.3},{"$f":"M8","v":7},10,{"$f":"N8","v":0.2},{"$f":"O8","v":0.5},null,null,null,"Feb",0.3,7,0.2,0.5]
["Mar",20,0.3,8.3000000000000007,10,0.3,0.7,null,null,null,"Mar",0.3,8.3000000000000007,0.3,0.7,null,"Whole Installation table A5:G18:"]
["Apr",20,0.4,13.8,10,0.3,0.6,null,null,null,"Apr",0.4,13.8,0.3,0.6,null,"Mean: for 1/2 hourly and daily periods calculate mean of values across all operational combustion lines for the month"]
["May",20,0.3,12.7,10,0.3,0.5,null,null,null,"May",0.3,12.7,0.3,0.5]
["Jun",20,0.3,13.1,10,0.3,0.6,null,null,null,"Jun",0.3,13.1,0.3,0.6]
["Jul",20,0.3,8,10,0.3,0.5,null,null,null,"Jul",0.3,8,0.3,0.5,null,"Maximum: for 1/2 hourly and daily periods use the highest value across all operational combustion lines for the month"]
["Aug",20,0.4,6.3,10,0.3,0.6,null,null,null,"Aug",0.4,6.3,0.3,0.6]
["Sep",20,0.3,7.1,10,0.3,0.5,null,null,null,"Sep",0.3,7.1,0.3,0.5]
["Oct",20,0.3,8.4,10,0.3,0.5,null,null,null,"Oct",0.3,8.4,0.3,0.5]
["Nov",20,0.4,9.1999999999999993,10,0.3,0.6,null,null,null,"Nov",0.4,9.1999999999999993,0.3,0.6]
["Dec",20,0.3,8.6,10,0.3,0.5,null,null,null,"Dec",0.3,8.6,0.3,0.5]
[null,null,null,null,null,null,null,null,null,null,"Annual",{"$f":"AVERAGE(L7:L18)","v":0.3249999999999999},{"$f":"MAX(M7:M18)","v":13.8},{"$f":"AVERAGE(N7:N18)","v":0.28333333333333327},{"$f":"MAX(O7:O18)","v":0.7}]
[]
[null,null,null,null,null,null,null,null,null,{"$f":"+A5","v":2025},"mg/Nm3","Monthly mean of half-hourly averages","Highest half- hourly average","Monthly mean of  daily averages","Highest daily average"]
[null,null,null,null,null,null,null,null,null,"A2","Jan","N/A","N/A","N/A","N/A"]
[null,null,null,null,null,null,null,null,null,null,"Feb","N/A","N/A","N/A","N/A"]
[null,null,null,null,null,null,null,null,null,null,"Mar","N/A","N/A","N/A","N/A"]
[null,null,null,null,null,null,null,null,null,null,"Apr","N/A","N/A","N/A","N/A"]
[null,null,null,null,null,null,null,null,null,null,"May","N/A","N/A","N/A","N/A"]
[null,null,null,null,null,null,null,null,null,null,"Jun","N/A","N/A","N/A","N/A"]
[null,null,null,null,null,null,null,null,null,null,"Jul","N/A","N/A","N/A","N/A"]
[null,null,null,null,null,null,null,null,null,null,"Aug","N/A","N/A","N/A","N/A"]
[null,null,null,null,null,null,null,null,null,null,"Sep","N/A","N/A","N/A","N/A"]
[null,null,null,null,null,null,null,null,null,null,"Oct","N/A","N/A","N/A","N/A"]
[null,null,null,null,null,null,null,null,null,null,"Nov","N/A","N/A","N/A","N/A"]
[null,null,null,null,null,null,null,null,null,null,"Dec","N/A","N/A","N/A","N/A"]
[null,null,null,null,null,null,null,null,null,null,"Annual",{"$f":"AVERAGE(L22:L33)","v":{"$error":"#DIV/0!"}},{"$f":"MAX(M22:M33)","v":0},{"$f":"AVERAGE(N22:N33)","v":{"$error":"#DIV/0!"}},{"$f":"MAX(O22:O33)","v":0}]
[]
[null,null,null,null,null,null,null,null,null,{"$f":"+A5","v":2025},"mg/Nm3","Monthly mean of half-hourly averages","Highest half- hourly average","Monthly mean of  daily averages","Highest daily average"]
[null,null,null,null,null,null,null,null,null,"A3","Jan","N/A","N/A","N/A","N/A"]
[null,null,null,null,null,null,null,null,null,null,"Feb","N/A","N/A","N/A","N/A"]
[null,null,null,null,null,null,null,null,null,null,"Mar","N/A","N/A","N/A","N/A"]
[null,null,null,null,null,null,null,null,null,null,"Apr","N/A","N/A","N/A","N/A"]
[null,null,null,null,null,null,null,null,null,null,"May","N/A","N/A","N/A","N/A"]
[null,null,null,null,null,null,null,null,null,null,"Jun","N/A","N/A","N/A","N/A"]
[null,null,null,null,null,null,null,null,null,null,"Jul","N/A","N/A","N/A","N/A"]
[null,null,null,null,null,null,null,null,null,null,"Aug","N/A","N/A","N/A","N/A"]
[null,null,null,null,null,null,null,null,null,null,"Sep","N/A","N/A","N/A","N/A"]
[null,null,null,null,null,null,null,null,null,null,"Oct","N/A","N/A","N/A","N/A"]
[null,null,null,null,null,null,null,null,null,null,"Nov","N/A","N/A","N/A","N/A"]
["Comments :",null,null,null,null,null,null,null,null,null,"Dec","N/A","N/A","N/A","N/A"]
[null,null,null,null,null,null,null,null,null,null,"Annual",{"$f":"AVERAGE(L37:L48)","v":{"$error":"#DIV/0!"}},{"$f":"MAX(M37:M48)","v":0},{"$f":"AVERAGE(N37:N48)","v":{"$error":"#DIV/0!"}},{"$f":"MAX(O37:O48)","v":0}]
[]
[null,null,null,null,null,null,null,null,null,{"$f":"+A5","v":2025},"mg/Nm3","Monthly mean of half-hourly averages","Highest half- hourly average","Monthly mean of  daily averages","Highest daily average"]
[null,null,null,null,null,null,null,null,null,"A4","Jan","N/A","N/A","N/A","N/A"]
[null,null,null,null,null,null,null,null,null,null,"Feb","N/A","N/A","N/A","N/A"]
[null,null,null,null,null,null,null,null,null,null,"Mar","N/A","N/A","N/A","N/A"]
[null,null,null,null,null,null,null,null,null,null,"Apr","N/A","N/A","N/A","N/A"]
[null,null,null,null,null,null,null,null,null,null,"May","N/A","N/A","N/A","N/A"]
[null,null,null,null,null,null,null,null,null,null,"Jun","N/A","N/A","N/A","N/A"]
[null,null,null,null,null,null,null,null,null,null,"Jul","N/A","N/A","N/A","N/A"]
[null,null,null,null,null,null,null,null,null,null,"Aug","N/A","N/A","N/A","N/A"]
[null,null,null,null,null,null,null,null,null,null,"Sep","N/A","N/A","N/A","N/A"]
[null,null,null,null,null,null,null,null,null,null,"Oct","N/A","N/A","N/A","N/A"]
[null,null,null,null,null,null,null,null,null,null,"Nov","N/A","N/A","N/A","N/A"]
[null,null,null,null,null,null,null,null,null,null,"Dec","N/A","N/A","N/A","N/A"]
[null,null,null,null,null,null,null,null,null,null,"Annual",{"$f":"AVERAGE(L52:L63)","v":{"$error":"#DIV/0!"}},{"$f":"MAX(M52:M63)","v":0},{"$f":"AVERAGE(N52:N63)","v":{"$error":"#DIV/0!"}},{"$f":"MAX(O52:O63)","v":0}]
[]
[null,null,null,null,null,null,null,null,null,{"$f":"+A5","v":2025},"mg/Nm3","Monthly mean of half-hourly averages","Highest half- hourly average","Monthly mean of  daily averages","Highest daily average"]
[null,null,null,null,null,null,null,null,null,"A5","Jan","N/A","N/A","N/A","N/A"]
[null,null,null,null,null,null,null,null,null,null,"Feb","N/A","N/A","N/A","N/A"]
[null,null,null,null,null,null,null,null,null,null,"Mar","N/A","N/A","N/A","N/A"]
[null,null,null,null,null,null,null,null,null,null,"Apr","N/A","N/A","N/A","N/A"]
[null,null,null,null,null,null,null,null,null,null,"May","N/A","N/A","N/A","N/A"]
[null,null,null,null,null,null,null,null,null,null,"Jun","N/A","N/A","N/A","N/A"]
[null,null,null,null,null,null,null,null,null,null,"Jul","N/A","N/A","N/A","N/A"]
[null,null,null,null,null,null,null,null,null,null,"Aug","N/A","N/A","N/A","N/A"]
[null,null,null,null,null,null,null,null,null,null,"Sep","N/A","N/A","N/A","N/A"]
[null,null,null,null,null,null,null,null,null,null,"Oct","N/A","N/A","N/A","N/A"]
[null,null,null,null,null,null,null,null,null,null,"Nov","N/A","N/A","N/A","N/A"]
[null,null,null,null,null,null,null,null,null,null,"Dec","N/A","N/A","N/A","N/A"]
[null,null,null,null,null,null,null,null,null,null,"Annual",{"$f":"AVERAGE(L67:L78)","v":{"$error":"#DIV/0!"}},{"$f":"MAX(M67:M78)","v":0},{"$f":"AVERAGE(N67:N78)","v":{"$error":"#DIV/0!"}},{"$f":"MAX(O67:O78)","v":0}]

{"sheet":"Particulates","index":19,"n_rows":79,"n_cols":17,"rows_kept":79,"cut":false,"hidden":false,"merged":[[4,16,8,18],[10,16,12,18],[13,16,16,18],[66,9,78,9],[4,1,4,3],[4,4,4,6],[4,9,4,14],[6,9,18,9],[21,9,33,9],[36,9,48,9],[47,0,47,6],[48,0,51,6],[51,9,63,9],[18,4,18,6]]}
[{"$f":"+'Cover Page'!$B$29","v":"Annual Performance Report 2025"},null,null,null,{"$f":"+'Cover Page'!$B$33","v":"Newhurst Energy Recovery Facility"}]
[]
["Monitoring of Particulate matter emissions",null,null,"Whole Installation",null,null,"See  Notes in Cell Q3",null,null,{"$f":"+A3","v":"Monitoring of Particulate matter emissions"},null,null,null,"Per Combustion Line",null,null,"Notes:"]
[]
[{"$f":"+'Cover Page'!C39","v":2025},"1/2 Hourly Reference Periods",null,null,"Daily Reference Periods",null,null,null,null,null,null,null,null,null,null,null,"User to add logic to complete Whole installation, Table A5:G18. From the data in Per Combustion Line, Table J6:O79, subject to No. of lines installed"]
["mg/Nm3","1/2 hourly PM ELV","Monthly mean of half-hourly averages","Highest half- hourly average","Daily PM ELV","Monthly mean of  daily averages","Highest daily average",null,null,{"$f":"+A5","v":2025},"mg/Nm3","Monthly mean of half-hourly averages","Highest half- hourly average","Monthly mean of  daily averages","Highest daily average"]
["Jan",30,{"$f":"L7","v":0.1},{"$f":"M7","v":0.1},5,{"$f":"N7","v":0},{"$f":"O7","v":0.1},null,null,"A1","Jan",0.1,0.1,0,0.1]
["Feb",30,{"$f":"L8","v":0.1},{"$f":"M8","v":0.1},5,{"$f":"N8","v":0},{"$f":"O8","v":0.1},null,null,null,"Feb",0.1,0.1,0,0.1]
["Mar",30,0.1,0.1,5,0,0.1,null,null,null,"Mar",0.1,0.1,0,0.1]
["Apr",30,0.1,0.5,5,0,0.1,null,null,null,"Apr",0.1,0.5,0,0.1,null,"Whole Installation table A5:G18:"]
["May",30,0.1,0.1,5,0,0.1,null,null,null,"May",0.1,0.1,0,0.1,null,"Mean: for 1/2 hourly and daily periods calculate mean of values across all operational combustion lines for the month"]
["Jun",30,0.1,0.2,5,0,0.1,null,null,null,"Jun",0.1,0.2,0,0.1]
["Jul",30,0.1,1.2,5,0.1,0.4,null,null,null,"Jul",0.1,1.2,0.1,0.4]
["Aug",30,0.1,0.1,5,0,0.1,null,null,null,"Aug",0.1,0.1,0,0.1,null,"Maximum: for 1/2 hourly and daily periods use the highest value across all operational combustion lines for the month"]
["Sep",30,0.1,0.1,5,0,0.1,null,null,null,"Sep",0.1,0.1,0,0.1]
["Oct",30,0.1,0.2,5,0,0.1,null,null,null,"Oct",0.1,0.2,0,0.1]
["Nov",30,0.1,0.1,5,0,0.1,null,null,null,"Nov",0.1,0.1,0,0.1]
["Dec",30,0.1,2.8,5,0.1,0.9,null,null,null,"Dec",0.1,2.8,0.1,0.9]
[null,null,null,null,null,null,null,null,null,null,"Annual",{"$f":"AVERAGE(L7:L18)","v":9.9999999999999992E-2},{"$f":"MAX(M7:M18)","v":2.8},{"$f":"AVERAGE(N7:N18)","v":1.6666666666666666E-2},{"$f":"MAX(O7:O18)","v":0.9}]
[]
[null,null,null,null,null,null,null,null,null,{"$f":"+A5","v":2025},"mg/Nm3","Monthly mean of half-hourly averages","Highest half- hourly average","Monthly mean of  daily averages","Highest daily average"]
[null,null,null,null,null,null,null,null,null,"A2","Jan","N/A","N/A","N/A","N/A"]
[null,null,null,null,null,null,null,null,null,null,"Feb","N/A","N/A","N/A","N/A"]
[null,null,null,null,null,null,null,null,null,null,"Mar","N/A","N/A","N/A","N/A"]
[null,null,null,null,null,null,null,null,null,null,"Apr","N/A","N/A","N/A","N/A"]
[null,null,null,null,null,null,null,null,null,null,"May","N/A","N/A","N/A","N/A"]
[null,null,null,null,null,null,null,null,null,null,"Jun","N/A","N/A","N/A","N/A"]
[null,null,null,null,null,null,null,null,null,null,"Jul","N/A","N/A","N/A","N/A"]
[null,null,null,null,null,null,null,null,null,null,"Aug","N/A","N/A","N/A","N/A"]
[null,null,null,null,null,null,null,null,null,null,"Sep","N/A","N/A","N/A","N/A"]
[null,null,null,null,null,null,null,null,null,null,"Oct","N/A","N/A","N/A","N/A"]
[null,null,null,null,null,null,null,null,null,null,"Nov","N/A","N/A","N/A","N/A"]
[null,null,null,null,null,null,null,null,null,null,"Dec","N/A","N/A","N/A","N/A"]
[null,null,null,null,null,null,null,null,null,null,"Annual",{"$f":"AVERAGE(L22:L33)","v":{"$error":"#DIV/0!"}},{"$f":"MAX(M22:M33)","v":0},{"$f":"AVERAGE(N22:N33)","v":{"$error":"#DIV/0!"}},{"$f":"MAX(O22:O33)","v":0}]
[]
[null,null,null,null,null,null,null,null,null,{"$f":"+A5","v":2025},"mg/Nm3","Monthly mean of half-hourly averages","Highest half- hourly average","Monthly mean of  daily averages","Highest daily average"]
[null,null,null,null,null,null,null,null,null,"A3","Jan","N/A","N/A","N/A","N/A"]
[null,null,null,null,null,null,null,null,null,null,"Feb","N/A","N/A","N/A","N/A"]
[null,null,null,null,null,null,null,null,null,null,"Mar","N/A","N/A","N/A","N/A"]
[null,null,null,null,null,null,null,null,null,null,"Apr","N/A","N/A","N/A","N/A"]
[null,null,null,null,null,null,null,null,null,null,"May","N/A","N/A","N/A","N/A"]
[null,null,null,null,null,null,null,null,null,null,"Jun","N/A","N/A","N/A","N/A"]
[null,null,null,null,null,null,null,null,null,null,"Jul","N/A","N/A","N/A","N/A"]
[null,null,null,null,null,null,null,null,null,null,"Aug","N/A","N/A","N/A","N/A"]
[null,null,null,null,null,null,null,null,null,null,"Sep","N/A","N/A","N/A","N/A"]
[null,null,null,null,null,null,null,null,null,null,"Oct","N/A","N/A","N/A","N/A"]
[null,null,null,null,null,null,null,null,null,null,"Nov","N/A","N/A","N/A","N/A"]
["Comments :",null,null,null,null,null,null,null,null,null,"Dec","N/A","N/A","N/A","N/A"]
["The two slightly elevated levels, in July and December, were due to damage to a filter bag. The bag was isolated and changed and levels immediately returned to normal (0.1mg/Nm3).",null,null,null,null,null,null,null,null,null,"Annual",{"$f":"AVERAGE(L37:L48)","v":{"$error":"#DIV/0!"}},{"$f":"MAX(M37:M48)","v":0},{"$f":"AVERAGE(N37:N48)","v":{"$error":"#DIV/0!"}},{"$f":"MAX(O37:O48)","v":0}]
[]
[null,null,null,null,null,null,null,null,null,{"$f":"+A5","v":2025},"mg/Nm3","Monthly mean of half-hourly averages","Highest half- hourly average","Monthly mean of  daily averages","Highest daily average"]
[null,null,null,null,null,null,null,null,null,"A4","Jan","N/A","N/A","N/A","N/A"]
[null,null,null,null,null,null,null,null,null,null,"Feb","N/A","N/A","N/A","N/A"]
[null,null,null,null,null,null,null,null,null,null,"Mar","N/A","N/A","N/A","N/A"]
[null,null,null,null,null,null,null,null,null,null,"Apr","N/A","N/A","N/A","N/A"]
[null,null,null,null,null,null,null,null,null,null,"May","N/A","N/A","N/A","N/A"]
[null,null,null,null,null,null,null,null,null,null,"Jun","N/A","N/A","N/A","N/A"]
[null,null,null,null,null,null,null,null,null,null,"Jul","N/A","N/A","N/A","N/A"]
[null,null,null,null,null,null,null,null,null,null,"Aug","N/A","N/A","N/A","N/A"]
[null,null,null,null,null,null,null,null,null,null,"Sep","N/A","N/A","N/A","N/A"]
[null,null,null,null,null,null,null,null,null,null,"Oct","N/A","N/A","N/A","N/A"]
[null,null,null,null,null,null,null,null,null,null,"Nov","N/A","N/A","N/A","N/A"]
[null,null,null,null,null,null,null,null,null,null,"Dec","N/A","N/A","N/A","N/A"]
[null,null,null,null,null,null,null,null,null,null,"Annual",{"$f":"AVERAGE(L52:L63)","v":{"$error":"#DIV/0!"}},{"$f":"MAX(M52:M63)","v":0},{"$f":"AVERAGE(N52:N63)","v":{"$error":"#DIV/0!"}},{"$f":"MAX(O52:O63)","v":0}]
[]
[null,null,null,null,null,null,null,null,null,{"$f":"+A5","v":2025},"mg/Nm3","Monthly mean of half-hourly averages","Highest half- hourly average","Monthly mean of  daily averages","Highest daily average"]
[null,null,null,null,null,null,null,null,null,"A5","Jan","N/A","N/A","N/A","N/A"]
[null,null,null,null,null,null,null,null,null,null,"Feb","N/A","N/A","N/A","N/A"]
[null,null,null,null,null,null,null,null,null,null,"Mar","N/A","N/A","N/A","N/A"]
[null,null,null,null,null,null,null,null,null,null,"Apr","N/A","N/A","N/A","N/A"]
[null,null,null,null,null,null,null,null,null,null,"May","N/A","N/A","N/A","N/A"]
[null,null,null,null,null,null,null,null,null,null,"Jun","N/A","N/A","N/A","N/A"]
[null,null,null,null,null,null,null,null,null,null,"Jul","N/A","N/A","N/A","N/A"]
[null,null,null,null,null,null,null,null,null,null,"Aug","N/A","N/A","N/A","N/A"]
[null,null,null,null,null,null,null,null,null,null,"Sep","N/A","N/A","N/A","N/A"]
[null,null,null,null,null,null,null,null,null,null,"Oct","N/A","N/A","N/A","N/A"]
[null,null,null,null,null,null,null,null,null,null,"Nov","N/A","N/A","N/A","N/A"]
[null,null,null,null,null,null,null,null,null,null,"Dec","N/A","N/A","N/A","N/A"]
[null,null,null,null,null,null,null,null,null,null,"Annual",{"$f":"AVERAGE(L67:L78)","v":{"$error":"#DIV/0!"}},{"$f":"MAX(M67:M78)","v":0},{"$f":"AVERAGE(N67:N78)","v":{"$error":"#DIV/0!"}},{"$f":"MAX(O67:O78)","v":0}]

{"sheet":"CO 0.5 hourly","index":20,"n_rows":82,"n_cols":17,"rows_kept":82,"cut":false,"hidden":false,"merged":[[4,0,5,6],[6,16,10,18],[12,16,14,18],[15,16,18,18],[69,9,81,9],[7,1,7,3],[7,4,7,6],[7,9,7,14],[9,9,21,9],[24,9,36,9],[39,9,51,9],[50,0,50,6],[51,0,54,6],[54,9,66,9]]}
[{"$f":"+'Cover Page'!$B$29","v":"Annual Performance Report 2025"},null,null,null,{"$f":"+'Cover Page'!$B$33","v":"Newhurst Energy Recovery Facility"}]
[]
["Monitoring of Carbon Monoxide (half hourly)",null,null,"Whole Installation",null,null,"See  Notes in Cell Q3",null,null,{"$f":"+A3","v":"Monitoring of Carbon Monoxide (half hourly)"},null,null,null,"Per Combustion Line",null,null,"Notes:"]
[]
["Please complete this tab for your plant if you have 1/2 hourly CO ELVs; otherwise, leave it blank and complete the CO 95% 10 min tab"]
[]
[null,null,null,null,null,null,null,null,null,null,null,null,null,null,null,null,"User to add logic to complete Whole installation, Table A5:G18. From the data in Per Combustion Line, Table J6:O79, subject to No. of lines installed"]
[{"$f":"+'Cover Page'!C39","v":2025},"1/2 Hourly Reference Periods",null,null,"Daily Reference Periods"]
["mg/Nm3","1/2 hourly CO ELV","Monthly mean of half-hourly averages","Highest half- hourly average","Daily CO ELV","Monthly mean of  daily averages","Highest daily average",null,null,{"$f":"+A8","v":2025},"mg/Nm3","Monthly mean of half-hourly averages","Highest half- hourly average","Monthly mean of  daily averages","Highest daily average"]
["Jan",100,null,null,50,null,null,null,null,"A1","Jan"]
["Feb",{"$f":"+B10","v":100},null,null,{"$f":"+E10","v":50},null,null,null,null,null,"Feb"]
["Mar",{"$f":"+B11","v":100},null,null,{"$f":"+E11","v":50},null,null,null,null,null,"Mar",null,null,null,null,null,"Whole Installation table A5:G18:"]
["Apr",100,null,null,50,null,null,null,null,null,"Apr",null,null,null,null,null,"Mean: for 1/2 hourly and daily periods calculate mean of values across all operational combustion lines for the month"]
["May",100,null,null,50,null,null,null,null,null,"May"]
["Jun",100,null,null,50,null,null,null,null,null,"Jun"]
["Jul",100,null,null,50,null,null,null,null,null,"Jul",null,null,null,null,null,"Maximum: for 1/2 hourly and daily periods use the highest value across all operational combustion lines for the month"]
["Aug",100,null,null,50,null,null,null,null,null,"Aug"]
["Sep",100,null,null,50,null,null,null,null,null,"Sep"]
["Oct",100,null,null,50,null,null,null,null,null,"Oct"]
["Nov",100,null,null,50,null,null,null,null,null,"Nov"]
["Dec",100,null,null,50,null,null,null,null,null,"Dec"]
[null,null,null,null,null,null,null,null,null,null,"Annual",{"$f":"AVERAGE(L10:L21)","v":{"$error":"#DIV/0!"}},{"$f":"MAX(M10:M21)","v":0},{"$f":"AVERAGE(N10:N21)","v":{"$error":"#DIV/0!"}},{"$f":"MAX(O10:O21)","v":0}]
[]
[null,null,null,null,null,null,null,null,null,{"$f":"+A8","v":2025},"mg/Nm3","Monthly mean of half-hourly averages","Highest half- hourly average","Monthly mean of  daily averages","Highest daily average"]
[null,null,null,null,null,null,null,null,null,"A2","Jan"]
[null,null,null,null,null,null,null,null,null,null,"Feb"]
[null,null,null,null,null,null,null,null,null,null,"Mar"]
[null,null,null,null,null,null,null,null,null,null,"Apr"]
[null,null,null,null,null,null,null,null,null,null,"May"]
[null,null,null,null,null,null,null,null,null,null,"Jun"]
[null,null,null,null,null,null,null,null,null,null,"Jul"]
[null,null,null,null,null,null,null,null,null,null,"Aug"]
[null,null,null,null,null,null,null,null,null,null,"Sep"]
[null,null,null,null,null,null,null,null,null,null,"Oct"]
[null,null,null,null,null,null,null,null,null,null,"Nov"]
[null,null,null,null,null,null,null,null,null,null,"Dec"]
[null,null,null,null,null,null,null,null,null,null,"Annual",{"$f":"AVERAGE(L25:L36)","v":{"$error":"#DIV/0!"}},{"$f":"MAX(M25:M36)","v":0},{"$f":"AVERAGE(N25:N36)","v":{"$error":"#DIV/0!"}},{"$f":"MAX(O25:O36)","v":0}]
[]
[null,null,null,null,null,null,null,null,null,{"$f":"+A8","v":2025},"mg/Nm3","Monthly mean of half-hourly averages","Highest half- hourly average","Monthly mean of  daily averages","Highest daily average"]
[null,null,null,null,null,null,null,null,null,"A3","Jan"]
[null,null,null,null,null,null,null,null,null,null,"Feb"]
[null,null,null,null,null,null,null,null,null,null,"Mar"]
[null,null,null,null,null,null,null,null,null,null,"Apr"]
[null,null,null,null,null,null,null,null,null,null,"May"]
[null,null,null,null,null,null,null,null,null,null,"Jun"]
[null,null,null,null,null,null,null,null,null,null,"Jul"]
[null,null,null,null,null,null,null,null,null,null,"Aug"]
[null,null,null,null,null,null,null,null,null,null,"Sep"]
[null,null,null,null,null,null,null,null,null,null,"Oct"]
[null,null,null,null,null,null,null,null,null,null,"Nov"]
["Comments :",null,null,null,null,null,null,null,null,null,"Dec"]
[null,null,null,null,null,null,null,null,null,null,"Annual",{"$f":"AVERAGE(L40:L51)","v":{"$error":"#DIV/0!"}},{"$f":"MAX(M40:M51)","v":0},{"$f":"AVERAGE(N40:N51)","v":{"$error":"#DIV/0!"}},{"$f":"MAX(O40:O51)","v":0}]
[]
[null,null,null,null,null,null,null,null,null,{"$f":"+A8","v":2025},"mg/Nm3","Monthly mean of half-hourly averages","Highest half- hourly average","Monthly mean of  daily averages","Highest daily average"]
[null,null,null,null,null,null,null,null,null,"A4","Jan"]
[null,null,null,null,null,null,null,null,null,null,"Feb"]
[null,null,null,null,null,null,null,null,null,null,"Mar"]
[null,null,null,null,null,null,null,null,null,null,"Apr"]
[null,null,null,null,null,null,null,null,null,null,"May"]
[null,null,null,null,null,null,null,null,null,null,"Jun"]
[null,null,null,null,null,null,null,null,null,null,"Jul"]
[null,null,null,null,null,null,null,null,null,null,"Aug"]
[null,null,null,null,null,null,null,null,null,null,"Sep"]
[null,null,null,null,null,null,null,null,null,null,"Oct"]
[null,null,null,null,null,null,null,null,null,null,"Nov"]
[null,null,null,null,null,null,null,null,null,null,"Dec"]
[null,null,null,null,null,null,null,null,null,null,"Annual",{"$f":"AVERAGE(L55:L66)","v":{"$error":"#DIV/0!"}},{"$f":"MAX(M55:M66)","v":0},{"$f":"AVERAGE(N55:N66)","v":{"$error":"#DIV/0!"}},{"$f":"MAX(O55:O66)","v":0}]
[]
[null,null,null,null,null,null,null,null,null,{"$f":"+A8","v":2025},"mg/Nm3","Monthly mean of half-hourly averages","Highest half- hourly average","Monthly mean of  daily averages","Highest daily average"]
[null,null,null,null,null,null,null,null,null,"A5","Jan"]
[null,null,null,null,null,null,null,null,null,null,"Feb"]
[null,null,null,null,null,null,null,null,null,null,"Mar"]
[null,null,null,null,null,null,null,null,null,null,"Apr"]
[null,null,null,null,null,null,null,null,null,null,"May"]
[null,null,null,null,null,null,null,null,null,null,"Jun"]
[null,null,null,null,null,null,null,null,null,null,"Jul"]
[null,null,null,null,null,null,null,null,null,null,"Aug"]
[null,null,null,null,null,null,null,null,null,null,"Sep"]
[null,null,null,null,null,null,null,null,null,null,"Oct"]
[null,null,null,null,null,null,null,null,null,null,"Nov"]
[null,null,null,null,null,null,null,null,null,null,"Dec"]
[null,null,null,null,null,null,null,null,null,null,"Annual",{"$f":"AVERAGE(L70:L81)","v":{"$error":"#DIV/0!"}},{"$f":"MAX(M70:M81)","v":0},{"$f":"AVERAGE(N70:N81)","v":{"$error":"#DIV/0!"}},{"$f":"MAX(O70:O81)","v":0}]

{"sheet":"CO 95% 10 min","index":21,"n_rows":83,"n_cols":19,"rows_kept":83,"cut":false,"hidden":false,"merged":[[4,0,5,7],[6,18,10,20],[12,18,14,20],[15,18,18,20],[70,10,82,10],[7,1,7,4],[7,5,7,7],[7,10,7,16],[9,10,21,10],[24,10,36,10],[39,10,51,10],[50,0,50,7],[51,0,54,7],[54,10,67,10]]}
[{"$f":"+'Cover Page'!$B$29","v":"Annual Performance Report 2025"},null,null,null,{"$f":"+'Cover Page'!$B$33","v":"Newhurst Energy Recovery Facility"}]
[]
["Monitoring of Carbon Monoxide (10-minute avg)",null,null,null,"Whole Installation",null,null,"See  Notes in Cell S3",null,{"$f":"+A3","v":"Monitoring of Carbon Monoxide (10-minute avg)"},null,null,null,null,"Per Combustion Line",null,"Notes:",null,"Notes:"]
[]
["Please complete this tab for your plant if you have 10-minute average CO ELVs; otherwise, leave it blank and complete the CO 0.5 hourly tab"]
[]
[null,null,null,null,null,null,null,null,null,null,null,null,null,null,null,null,null,null,"User to add logic to complete Whole installation, Table A5:H18. From the data in Per Combustion Line, Table K6:Q79, subject to No. of lines installed"]
[{"$f":"+'Cover Page'!C39","v":2025},"10-minute Reference Periods",null,null,null,"Daily Reference Periods"]
["mg/Nm3","95%ile 10-min avg CO ELV","Highest daily 95%ile 10-min average","Monthly mean of 10-min averages","Highest 10-min average","Daily CO ELV","Monthly mean of  daily averages","Highest daily average",null,null,{"$f":"+A8","v":2025},"mg/Nm3","Highest daily 95%ile 10-min average","Monthly mean of 10-min averages","Highest 10-min average","Monthly mean of  daily averages","Highest daily average"]
["Jan",150,{"$f":"M10","v":24.8},{"$f":"N10","v":7},{"$f":"O10","v":765.6},50,{"$f":"P10","v":6.5},{"$f":"Q10","v":12.8},null,null,"A1","Jan",24.8,7,765.6,6.5,12.8]
["Feb",{"$f":"+B10","v":150},{"$f":"M11","v":39.6},{"$f":"N11","v":8.3000000000000007},{"$f":"O11","v":835},{"$f":"+F10","v":50},{"$f":"P11","v":8.3000000000000007},{"$f":"Q11","v":15.7},null,null,null,"Feb",39.6,8.3000000000000007,835,8.3000000000000007,15.7]
["Mar",{"$f":"+B11","v":150},78.599999999999994,9.6,1216.2,{"$f":"+F11","v":50},9.4,22.1,null,null,null,"Mar",78.599999999999994,9.6,1216.2,9.4,22.1,null,"Whole Installation table A5:H18:"]
["Apr",150,35.700000000000003,8.9,1135.7,50,9,18.5,null,null,null,"Apr",35.700000000000003,8.9,1135.7,9,18.5,null,"Mean: for 10-min and daily periods use average of all operational combustion lines."]
["May",150,41.3,8.9,1305.3,50,8.9,17.899999999999999,null,null,null,"May",41.3,8.9,1305.3,8.9,17.899999999999999]
["Jun",150,56.1,9.1999999999999993,5943.5,50,7.7,12.9,null,null,null,"Jun",56.1,9.1999999999999993,5943.5,7.7,12.9]
["Jul",150,88.2,8.9,656.9,50,8.9,16.3,null,null,null,"Jul",88.2,8.9,656.9,8.9,16.3,null,"Maximum: for 10-min and daily periods use the highest of all operational combustion lines in any month."]
["Aug",150,77.5,7.9,586.9,50,7.9,15.8,null,null,null,"Aug",77.5,7.9,586.9,7.9,15.8]
["Sep",150,22.4,4.5,506.2,50,4.4000000000000004,10.9,null,null,null,"Sep",22.4,4.5,506.2,4.4000000000000004,10.9]
["Oct",150,27.5,5.3,654.79999999999995,50,5.2,9.8000000000000007,null,null,null,"Oct",27.5,5.3,654.79999999999995,5.2,9.8000000000000007]
["Nov",150,18.899999999999999,5.2,600.9,50,5.0999999999999996,11.1,null,null,null,"Nov",18.899999999999999,5.2,600.9,5.0999999999999996,11.1]
["Dec",150,9.3000000000000007,3.8,524.20000000000005,50,3.8,8.3000000000000007,null,null,null,"Dec",9.3000000000000007,3.8,524.20000000000005,3.8,8.3000000000000007]
[null,null,null,null,null,null,null,null,null,null,null,"Annual",{"$f":"AVERAGE(M10:M21)","v":43.324999999999996},null,{"$f":"MAX(O10:O21)","v":5943.5},{"$f":"AVERAGE(P10:P21)","v":7.0916666666666677},{"$f":"MAX(Q10:Q21)","v":22.1}]
[]
[null,null,null,null,null,null,null,null,null,null,{"$f":"+A8","v":2025},"mg/Nm3","Highest daily 95%ile 10-min average","Monthly mean of 10-min averages","Highest 10-min average","Monthly mean of  daily averages","Highest daily average"]
[null,null,null,null,null,null,null,null,null,null,"A2","Jan","N/A","N/A","N/A","N/A","N/A"]
[null,null,null,null,null,null,null,null,null,null,null,"Feb","N/A","N/A","N/A","N/A","N/A"]
[null,null,null,null,null,null,null,null,null,null,null,"Mar","N/A","N/A","N/A","N/A","N/A"]
[null,null,null,null,null,null,null,null,null,null,null,"Apr","N/A","N/A","N/A","N/A","N/A"]
[null,null,null,null,null,null,null,null,null,null,null,"May","N/A","N/A","N/A","N/A","N/A"]
[null,null,null,null,null,null,null,null,null,null,null,"Jun","N/A","N/A","N/A","N/A","N/A"]
[null,null,null,null,null,null,null,null,null,null,null,"Jul","N/A","N/A","N/A","N/A","N/A"]
[null,null,null,null,null,null,null,null,null,null,null,"Aug","N/A","N/A","N/A","N/A","N/A"]
[null,null,null,null,null,null,null,null,null,null,null,"Sep","N/A","N/A","N/A","N/A","N/A"]
[null,null,null,null,null,null,null,null,null,null,null,"Oct","N/A","N/A","N/A","N/A","N/A"]
[null,null,null,null,null,null,null,null,null,null,null,"Nov","N/A","N/A","N/A","N/A","N/A"]
[null,null,null,null,null,null,null,null,null,null,null,"Dec","N/A","N/A","N/A","N/A","N/A"]
[null,null,null,null,null,null,null,null,null,null,null,"Annual",{"$f":"AVERAGE(M25:M36)","v":{"$error":"#DIV/0!"}},null,{"$f":"MAX(O25:O36)","v":0},{"$f":"AVERAGE(P25:P36)","v":{"$error":"#DIV/0!"}},{"$f":"MAX(Q25:Q36)","v":0}]
[]
[null,null,null,null,null,null,null,null,null,null,{"$f":"+A8","v":2025},"mg/Nm3","Highest daily 95%ile 10-min average","Monthly mean of 10-min averages","Highest 10-min average","Monthly mean of  daily averages","Highest daily average"]
[null,null,null,null,null,null,null,null,null,null,"A3","Jan","N/A","N/A","N/A","N/A","N/A"]
[null,null,null,null,null,null,null,null,null,null,null,"Feb","N/A","N/A","N/A","N/A","N/A"]
[null,null,null,null,null,null,null,null,null,null,null,"Mar","N/A","N/A","N/A","N/A","N/A"]
[null,null,null,null,null,null,null,null,null,null,null,"Apr","N/A","N/A","N/A","N/A","N/A"]
[null,null,null,null,null,null,null,null,null,null,null,"May","N/A","N/A","N/A","N/A","N/A"]
[null,null,null,null,null,null,null,null,null,null,null,"Jun","N/A","N/A","N/A","N/A","N/A"]
[null,null,null,null,null,null,null,null,null,null,null,"Jul","N/A","N/A","N/A","N/A","N/A"]
[null,null,null,null,null,null,null,null,null,null,null,"Aug","N/A","N/A","N/A","N/A","N/A"]
[null,null,null,null,null,null,null,null,null,null,null,"Sep","N/A","N/A","N/A","N/A","N/A"]
[null,null,null,null,null,null,null,null,null,null,null,"Oct","N/A","N/A","N/A","N/A","N/A"]
[null,null,null,null,null,null,null,null,null,null,null,"Nov","N/A","N/A","N/A","N/A","N/A"]
["Comments :",null,null,null,null,null,null,null,null,null,null,"Dec","N/A","N/A","N/A","N/A","N/A"]
["Environment Agency explanatory note: The 10-minute average ELV is based on the “95th percentile”. In this case this means that 95% of the 10 minute averages in the relevant 24-hour period (i.e. 137) must be below 150 mg/Nm3, and 5% (i.e. 7) are allowed to be any value above 150 mg/Nm3. Whilst we expect operators to minimise CO emissions at all times, it is perfectly acceptable for the value of the maximum 10-minute average to be above 150 mg/Nm3, provided the 95th percentile ELV has been met for that period. ",null,null,null,null,null,null,null,null,null,null,"Annual",{"$f":"AVERAGE(M40:M51)","v":{"$error":"#DIV/0!"}},null,{"$f":"MAX(O40:O51)","v":0},{"$f":"AVERAGE(P40:P51)","v":{"$error":"#DIV/0!"}},{"$f":"MAX(Q40:Q51)","v":0}]
[]
[null,null,null,null,null,null,null,null,null,null,{"$f":"+A8","v":2025},"mg/Nm3","Highest daily 95%ile 10-min average","Monthly mean of 10-min averages","Highest 10-min average","Monthly mean of  daily averages","Highest daily average"]
[null,null,null,null,null,null,null,null,null,null,"A4","Jan","N/A","N/A","N/A","N/A","N/A"]
[]
["GRAPH PLOTTED WITHOUT 10min max so other data is visible",null,null,null,null,null,null,null,null,null,null,"Feb","N/A","N/A","N/A","N/A","N/A"]
[null,null,null,null,null,null,null,null,null,null,null,"Mar","N/A","N/A","N/A","N/A","N/A"]
[null,null,null,null,null,null,null,null,null,null,null,"Apr","N/A","N/A","N/A","N/A","N/A"]
[null,null,null,null,null,null,null,null,null,null,null,"May","N/A","N/A","N/A","N/A","N/A"]
[null,null,null,null,null,null,null,null,null,null,null,"Jun","N/A","N/A","N/A","N/A","N/A"]
[null,null,null,null,null,null,null,null,null,null,null,"Jul","N/A","N/A","N/A","N/A","N/A"]
[null,null,null,null,null,null,null,null,null,null,null,"Aug","N/A","N/A","N/A","N/A","N/A"]
[null,null,null,null,null,null,null,null,null,null,null,"Sep","N/A","N/A","N/A","N/A","N/A"]
[null,null,null,null,null,null,null,null,null,null,null,"Oct","N/A","N/A","N/A","N/A","N/A"]
[null,null,null,null,null,null,null,null,null,null,null,"Nov","N/A","N/A","N/A","N/A","N/A"]
[null,null,null,null,null,null,null,null,null,null,null,"Dec","N/A","N/A","N/A","N/A","N/A"]
[null,null,null,null,null,null,null,null,null,null,null,"Annual",{"$f":"AVERAGE(M55:M67)","v":{"$error":"#DIV/0!"}},null,{"$f":"MAX(O55:O67)","v":0},{"$f":"AVERAGE(P55:P67)","v":{"$error":"#DIV/0!"}},{"$f":"MAX(Q55:Q67)","v":0}]
[]
[null,null,null,null,null,null,null,null,null,null,{"$f":"+A8","v":2025},"mg/Nm3","95%ile 10-min avg maximum","Monthly CO 10-min avg mean","10-min avg maximum","Monthly daily mean","Monthly daily maximum"]
[null,null,null,null,null,null,null,null,null,null,"A5","Jan","N/A","N/A","N/A","N/A","N/A"]
[null,null,null,null,null,null,null,null,null,null,null,"Feb","N/A","N/A","N/A","N/A","N/A"]
[null,null,null,null,null,null,null,null,null,null,null,"Mar","N/A","N/A","N/A","N/A","N/A"]
[null,null,null,null,null,null,null,null,null,null,null,"Apr","N/A","N/A","N/A","N/A","N/A"]
[null,null,null,null,null,null,null,null,null,null,null,"May","N/A","N/A","N/A","N/A","N/A"]
[null,null,null,null,null,null,null,null,null,null,null,"Jun","N/A","N/A","N/A","N/A","N/A"]
[null,null,null,null,null,null,null,null,null,null,null,"Jul","N/A","N/A","N/A","N/A","N/A"]
[null,null,null,null,null,null,null,null,null,null,null,"Aug","N/A","N/A","N/A","N/A","N/A"]
[null,null,null,null,null,null,null,null,null,null,null,"Sep","N/A","N/A","N/A","N/A","N/A"]
[null,null,null,null,null,null,null,null,null,null,null,"Oct","N/A","N/A","N/A","N/A","N/A"]
[null,null,null,null,null,null,null,null,null,null,null,"Nov","N/A","N/A","N/A","N/A","N/A"]
[null,null,null,null,null,null,null,null,null,null,null,"Dec","N/A","N/A","N/A","N/A","N/A"]
[null,null,null,null,null,null,null,null,null,null,null,"Annual",{"$f":"AVERAGE(M71:M82)","v":{"$error":"#DIV/0!"}},null,{"$f":"MAX(O71:O82)","v":0},{"$f":"AVERAGE(P71:P82)","v":{"$error":"#DIV/0!"}},{"$f":"MAX(Q71:Q82)","v":0}]

{"sheet":"NH3","index":22,"n_rows":79,"n_cols":17,"rows_kept":79,"cut":false,"hidden":false,"merged":[[3,16,7,18],[9,16,11,18],[12,16,15,18],[66,9,78,9],[4,1,4,3],[4,4,4,6],[4,9,4,14],[6,9,18,9],[21,9,33,9],[36,9,48,9],[47,0,47,6],[48,0,51,6],[51,9,63,9],[18,4,18,6]]}
[{"$f":"+'Cover Page'!$B$29","v":"Annual Performance Report 2025"},null,null,null,{"$f":"+'Cover Page'!$B$33","v":"Newhurst Energy Recovery Facility"}]
[]
["Monitoring of Ammnonia emissions ",null,null,"Whole Installation",null,null,"See  Notes in Cell Q3",null,null,{"$f":"+A3","v":"Monitoring of Ammnonia emissions "},null,null,null,"Per Combustion Line",null,null,"Notes:"]
[null,null,null,null,null,null,null,null,null,null,null,null,null,null,null,null,"User to add logic to complete Whole installation, Table A5:G18. From the data in Per Combustion Line, Table J6:O79, subject to No. of lines installed"]
[{"$f":"+'Cover Page'!C39","v":2025},"1/2 Hourly Reference Periods",null,null,"Daily Reference Periods"]
["mg/Nm3","1/2 hourly NH3 ELV","Monthly mean of half-hourly averages","Highest half- hourly average","Daily NH3 ELV","Monthly mean of  daily averages","Highest daily average",null,null,{"$f":"+A5","v":2025},"mg/Nm3","Monthly mean of half-hourly averages","Highest half- hourly average","Monthly mean of  daily averages","Highest daily average"]
["Jan","None",{"$f":"L7","v":0},{"$f":"M7","v":0.6},15,{"$f":"N7","v":0},{"$f":"O7","v":0.1},null,null,"A1","Jan",0,0.6,0,0.1]
["Feb",{"$f":"+B7","v":"None"},{"$f":"L8","v":0},{"$f":"M8","v":0.5},15,{"$f":"N8","v":0},{"$f":"O8","v":0.1},null,null,null,"Feb",0,0.5,0,0.1]
["Mar",{"$f":"+B8","v":"None"},0,0.3,15,0,0.1,null,null,null,"Mar",0,0.3,0,0.1,null,"Whole Installation table A5:G18:"]
["Apr","None",0.1,7.4,15,0,0.2,null,null,null,"Apr",0.1,7.4,0,0.2,null,"Mean: for 1/2 hourly and daily periods calculate mean of values across all operational combustion lines for the month"]
["May","None",0,0.5,15,0,0.1,null,null,null,"May",0,0.5,0,0.1]
["Jun","None",0,0.8,15,0,0.1,null,null,null,"Jun",0,0.8,0,0.1]
["Jul","None",0,0.4,15,0,0.1,null,null,null,"Jul",0,0.4,0,0.1,null,"Maximum: for 1/2 hourly and daily periods use the highest value across all operational combustion lines for the month"]
["Aug","None",0,0.2,15,0,0.1,null,null,null,"Aug",0,0.2,0,0.1]
["Sep","None",0,0.3,15,0,0.1,null,null,null,"Sep",0,0.3,0,0.1]
["Oct","None",0,0.4,15,0,0.1,null,null,null,"Oct",0,0.4,0,0.1]
["Nov","None",0,0.4,15,0,0.1,null,null,null,"Nov",0,0.4,0,0.1]
["Dec","None",0,0.4,15,0,0.1,null,null,null,"Dec",0,0.4,0,0.1]
[null,null,null,null,null,null,null,null,null,null,"Annual",{"$f":"AVERAGE(L7:L18)","v":8.3333333333333332E-3},{"$f":"MAX(M7:M18)","v":7.4},{"$f":"AVERAGE(N7:N18)","v":0},{"$f":"MAX(O7:O18)","v":0.2}]
[]
[null,null,null,null,null,null,null,null,null,{"$f":"+A5","v":2025},"mg/Nm3","Monthly mean of half-hourly averages","Highest half- hourly average","Monthly mean of  daily averages","Highest daily average"]
[null,null,null,null,null,null,null,null,null,"A2","Jan","N/A","N/A","N/A","N/A"]
[null,null,null,null,null,null,null,null,null,null,"Feb","N/A","N/A","N/A","N/A"]
[null,null,null,null,null,null,null,null,null,null,"Mar","N/A","N/A","N/A","N/A"]
[null,null,null,null,null,null,null,null,null,null,"Apr","N/A","N/A","N/A","N/A"]
[null,null,null,null,null,null,null,null,null,null,"May","N/A","N/A","N/A","N/A"]
[null,null,null,null,null,null,null,null,null,null,"Jun","N/A","N/A","N/A","N/A"]
[null,null,null,null,null,null,null,null,null,null,"Jul","N/A","N/A","N/A","N/A"]
[null,null,null,null,null,null,null,null,null,null,"Aug","N/A","N/A","N/A","N/A"]
[null,null,null,null,null,null,null,null,null,null,"Sep","N/A","N/A","N/A","N/A"]
[null,null,null,null,null,null,null,null,null,null,"Oct","N/A","N/A","N/A","N/A"]
[null,null,null,null,null,null,null,null,null,null,"Nov","N/A","N/A","N/A","N/A"]
[null,null,null,null,null,null,null,null,null,null,"Dec","N/A","N/A","N/A","N/A"]
[null,null,null,null,null,null,null,null,null,null,"Annual",{"$f":"AVERAGE(L22:L33)","v":{"$error":"#DIV/0!"}},{"$f":"MAX(M22:M33)","v":0},{"$f":"AVERAGE(N22:N33)","v":{"$error":"#DIV/0!"}},{"$f":"MAX(O22:O33)","v":0}]
[]
[null,null,null,null,null,null,null,null,null,{"$f":"+A5","v":2025},"mg/Nm3","Monthly mean of half-hourly averages","Highest half- hourly average","Monthly mean of  daily averages","Highest daily average"]
[null,null,null,null,null,null,null,null,null,"A3","Jan","N/A","N/A","N/A","N/A"]
[null,null,null,null,null,null,null,null,null,null,"Feb","N/A","N/A","N/A","N/A"]
[null,null,null,null,null,null,null,null,null,null,"Mar","N/A","N/A","N/A","N/A"]
[null,null,null,null,null,null,null,null,null,null,"Apr","N/A","N/A","N/A","N/A"]
[null,null,null,null,null,null,null,null,null,null,"May","N/A","N/A","N/A","N/A"]
[null,null,null,null,null,null,null,null,null,null,"Jun","N/A","N/A","N/A","N/A"]
[null,null,null,null,null,null,null,null,null,null,"Jul","N/A","N/A","N/A","N/A"]
[null,null,null,null,null,null,null,null,null,null,"Aug","N/A","N/A","N/A","N/A"]
[null,null,null,null,null,null,null,null,null,null,"Sep","N/A","N/A","N/A","N/A"]
[null,null,null,null,null,null,null,null,null,null,"Oct","N/A","N/A","N/A","N/A"]
[null,null,null,null,null,null,null,null,null,null,"Nov","N/A","N/A","N/A","N/A"]
["Comments :",null,null,null,null,null,null,null,null,null,"Dec","N/A","N/A","N/A","N/A"]
["An indicated ELV value of zero in the table above means that no ammonia limit is/was set in the permit.  ",null,null,null,null,null,null,null,null,null,"Annual",{"$f":"AVERAGE(L37:L48)","v":{"$error":"#DIV/0!"}},{"$f":"MAX(M37:M48)","v":0},{"$f":"AVERAGE(N37:N48)","v":{"$error":"#DIV/0!"}},{"$f":"MAX(O37:O48)","v":0}]
[]
[null,null,null,null,null,null,null,null,null,{"$f":"+A5","v":2025},"mg/Nm3","Monthly mean of half-hourly averages","Highest half- hourly average","Monthly mean of  daily averages","Highest daily average"]
[null,null,null,null,null,null,null,null,null,"A4","Jan","N/A","N/A","N/A","N/A"]
[null,null,null,null,null,null,null,null,null,null,"Feb","N/A","N/A","N/A","N/A"]
[null,null,null,null,null,null,null,null,null,null,"Mar","N/A","N/A","N/A","N/A"]
[null,null,null,null,null,null,null,null,null,null,"Apr","N/A","N/A","N/A","N/A"]
[null,null,null,null,null,null,null,null,null,null,"May","N/A","N/A","N/A","N/A"]
[null,null,null,null,null,null,null,null,null,null,"Jun","N/A","N/A","N/A","N/A"]
[null,null,null,null,null,null,null,null,null,null,"Jul","N/A","N/A","N/A","N/A"]
[null,null,null,null,null,null,null,null,null,null,"Aug","N/A","N/A","N/A","N/A"]
[null,null,null,null,null,null,null,null,null,null,"Sep","N/A","N/A","N/A","N/A"]
[null,null,null,null,null,null,null,null,null,null,"Oct","N/A","N/A","N/A","N/A"]
[null,null,null,null,null,null,null,null,null,null,"Nov","N/A","N/A","N/A","N/A"]
[null,null,null,null,null,null,null,null,null,null,"Dec","N/A","N/A","N/A","N/A"]
[null,null,null,null,null,null,null,null,null,null,"Annual",{"$f":"AVERAGE(L52:L63)","v":{"$error":"#DIV/0!"}},{"$f":"MAX(M52:M63)","v":0},{"$f":"AVERAGE(N52:N63)","v":{"$error":"#DIV/0!"}},{"$f":"MAX(O52:O63)","v":0}]
[]
[null,null,null,null,null,null,null,null,null,{"$f":"+A5","v":2025},"mg/Nm3","Monthly mean of half-hourly averages","Highest half- hourly average","Monthly mean of  daily averages","Highest daily average"]
[null,null,null,null,null,null,null,null,null,"A5","Jan","N/A","N/A","N/A","N/A"]
[null,null,null,null,null,null,null,null,null,null,"Feb","N/A","N/A","N/A","N/A"]
[null,null,null,null,null,null,null,null,null,null,"Mar","N/A","N/A","N/A","N/A"]
[null,null,null,null,null,null,null,null,null,null,"Apr","N/A","N/A","N/A","N/A"]
[null,null,null,null,null,null,null,null,null,null,"May","N/A","N/A","N/A","N/A"]
[null,null,null,null,null,null,null,null,null,null,"Jun","N/A","N/A","N/A","N/A"]
[null,null,null,null,null,null,null,null,null,null,"Jul","N/A","N/A","N/A","N/A"]
[null,null,null,null,null,null,null,null,null,null,"Aug","N/A","N/A","N/A","N/A"]
[null,null,null,null,null,null,null,null,null,null,"Sep","N/A","N/A","N/A","N/A"]
[null,null,null,null,null,null,null,null,null,null,"Oct","N/A","N/A","N/A","N/A"]
[null,null,null,null,null,null,null,null,null,null,"Nov","N/A","N/A","N/A","N/A"]
[null,null,null,null,null,null,null,null,null,null,"Dec","N/A","N/A","N/A","N/A"]
[null,null,null,null,null,null,null,null,null,null,"Annual",{"$f":"AVERAGE(L67:L78)","v":{"$error":"#DIV/0!"}},{"$f":"MAX(M67:M78)","v":0},{"$f":"AVERAGE(N67:N78)","v":{"$error":"#DIV/0!"}},{"$f":"MAX(O67:O78)","v":0}]

{"sheet":"Template changes log","index":23,"n_rows":23,"n_cols":3,"rows_kept":23,"cut":false,"hidden":false,"merged":[]}
["Log of changes to template (Environment Agency use only)"]
[]
["Date","Description of change","New version number and date"]
["2024-01-16","Air (periodic) tab: corrected default O2 reference from 6 to 11% ","Version 23.5a (for incinerators) - 16/01/2024"]
["2024-09-23","Air (periodic) tab: corrected symbol for Thallium to Tl"]
["2024-09-23","Air (periodic) tab: removed last year's references to different emission limit values applying from 03/12/23 and updated all relevant ELVs"]
["2024-09-23","Tabs for continuously monitored pollutants (HCl, SO2 etc.): changed terminology in table headings to improve clarity"]
["2024-09-23","Tabs for continuously monitored pollutants (HCl, SO2 etc.): removed last year's references to different emission limit values applying from 03/12/23 and updated all relevant ELVs"]
["2024-09-23","Perf 1 tab: updated formula for water usage to report m3 rather than litres and corrected error with formula copying operator name"]
["2024-09-23","Operational Summary tab: table added on start-ups and shut-downs"]
["2024-09-23","Operational Summary tab: table added on dioxins and mercury protocols"]
["2024-09-23","Operational Summary tab: table added on AST, QAL 2 and calibration functions"]
["2024-09-23","CO2 N2O tab: various changes made to notes to reflect the fact that most plants should now have calibrated CEMS and flow meters + some have C14 samplers and more up to date industry data","Version 24a (for incinerators) - 23/09/24"]
["2024-11-08","CO2 N2O tab: Changed the N2O CO2 equivalence factor from 298 to 265 in line with recently updated government greenhouse gas figures: https://www.gov.uk/government/publications/greenhouse-gas-reporting-conversion-factors-2024"]
["2024-11-08","CO2 N2O tab: Added an additional requirement for municipal EfW plants to state the yearly average biogenic percentage of the waste by mass, and reference to a document which sets out a methodology for calculating NCV of waste from the results of C14 sampling."]
["2024-11-08","Permit Compliance tab: Two additional columns added + explanatory notes to the table entitled \"Summary of non-compliances under the permit\" to allow CCS scores to be stated where relevant. "]
["2024-11-08","Residue Quality tab: Note added explaining application of TOC and LOI limits and asking operators to report both metrics where measured. ","Version 24.1a (for incinerators) - 08/11/24"]
["2024-11-27","Operational Summary tab: table added on start-ups and shut-downs","Version 24.2a (for incinerators) - 27/11/24"]
["2025-11-27","Cover Page: Print as PDF and Print Report and pdf buttons deleted and blank columns removed; contents page deleted","Version 25.1a (for incinerators) - 27/11/25"]
["2025-11-27","Residue Quality tab renamed to \"Residues\", and Summary of residue handling table moved from Operational Summary tab to Residues tab."]
["2025-11-27","Various changes made to the Operational Data tab including\n•\tReformatting of the rows under the Operational data heading (Rows 3-8) to make it clearer what information is required. \n•\tAmendment of the rows under the Energy Usage / Export heading (Rows 26-32) to calculate an “indicative parasitic load” (now excluding energy imported)\n•\tAmendment of the unit for gas usage from cubic feet to cubic metres (Row 50) \n•\tSome amendments to the first 2 notes and other minor edits\n•\tDeleted \"Overall Availability, mean avg. of all lines, hrs\" row"]
["2025-11-27","Operational Summary tab: Note added requiring all emergency shut-downs be listed, irrespective of whether or not they were reportable. "]
["2025-11-27","CO2 N2O tab: Note added to ask operators to ensure that relevant data reported here matches that which will be submitted under the Pollution Inventory"]